Workbook

Sheet 计数统计表
A1: 方向 | B1: 工艺学硕 | C1: 工艺专硕 | D1: 催化学硕 | E1: 催化专硕 | F1: 工程学硕 | G1: 工程专硕 | H1: 环境学硕 | I1: 环境专硕 | J1: 国际班 | K1: 总计
A2: 人数 | B2: 49 | C2: 33 | D2: 33 | E2: 24 | F2: 45 | G2: 27 | H2: 42 | I2: 20 | J2: 18 | K2: =SUM(B2:J2) -> 291

Sheet 工艺学硕
A1: 序号 | B1: 学号 | C1: 姓名 | D1: 方向 | E1: 德育成绩 | K1: 智育成绩 | Q1: 文体成绩 | W1: 总分 | X1: 排名
E2: 基础分 | F2: 奖励分 | G2: 惩罚分 | H2: 个人德育总分 | I2: 个人德育总分/基准 | J2: 德育总成绩 | K2: 基础分 | L2: 奖励分 | M2: 惩罚分 | N2: 个人智育总分 | O2: 个人智育总分/基准 | P2: 智育总成绩 | Q2: 基础分 | R2: 奖励分 | S2: 惩罚分 | T2: 个人文体总分 | U2: 个人文体总分/基准 | V2: 文体总成绩
A3: 1 | B3: 2022210594 | C3: 王新茹 | D3: 工艺学硕 | E3: — | F3: — | G3: — | H3: — | I3: — | J3: — | K3: — | L3: — | M3: — | N3: — | O3: — | P3: — | Q3: — | R3: — | S3: — | T3: — | U3: — | V3: — | W3: — | X3: — | Y3: 助管
A4: 2 | B4: 2022210520 | C4: 倪鹏磊 | D4: 工艺学硕 | E4: — | F4: — | G4: — | H4: — | I4: — | J4: — | K4: — | L4: — | M4: — | N4: — | O4: — | P4: — | Q4: — | R4: — | S4: — | T4: — | U4: — | V4: — | W4: — | X4: — | Y4: 兼职辅导员
A5: 3 | B5: 2022210551 | C5: 张欣颖 | D5: 工艺学硕 | E5: — | F5: — | G5: — | H5: — | I5: — | J5: — | K5: — | L5: — | M5: — | N5: — | O5: — | P5: — | Q5: — | R5: — | S5: — | T5: — | U5: — | V5: — | W5: — | X5: — | Y5: 助管
A6: 4 | B6: 2023210582 | C6: 高伊凡 | D6: 工艺学硕 | E6: — | F6: — | G6: — | H6: — | I6: — | J6: — | K6: — | L6: — | M6: — | N6: — | O6: — | P6: — | Q6: — | R6: — | S6: — | T6: — | U6: — | V6: — | W6: — | X6: — | Y6: 助管
A7: 5 | B7: 2023210537 | C7: 高龙喜 | D7: 工艺学硕 | E7: — | F7: — | G7: — | H7: — | I7: — | J7: — | K7: — | L7: — | M7: — | N7: — | O7: — | P7: — | Q7: — | R7: — | S7: — | T7: — | U7: — | V7: — | W7: — | X7: — | Y7: 助管
A8: 6 | B8: 2023210531 | C8: 刘晓琳 | D8: 工艺学硕 | E8: — | F8: — | G8: — | H8: — | I8: — | J8: — | K8: — | L8: — | M8: — | N8: — | O8: — | P8: — | Q8: — | R8: — | S8: — | T8: — | U8: — | V8: — | W8: — | X8: — | Y8: 助管
A9: 7 | B9: 2023210570 | C9: 韩淑雯 | D9: 工艺学硕 | E9: — | F9: — | G9: — | H9: — | I9: — | J9: — | K9: — | L9: — | M9: — | N9: — | O9: — | P9: — | Q9: — | R9: — | S9: — | T9: — | U9: — | V9: — | W9: — | X9: — | Y9: 助管
A10: 8 | B10: 2023210525 | C10: 赵思涵 | D10: 工艺学硕 | E10: — | F10: — | G10: — | H10: — | I10: — | J10: — | K10: — | L10: — | M10: — | N10: — | O10: — | P10: — | Q10: — | R10: — | S10: — | T10: — | U10: — | V10: — | W10: — | X10: — | Y10: 助管
A11: 9 | B11: 2023210553 | C11: 李宇龙 | D11: 工艺学硕 | E11: 97.016 | F11: 8.6 | G11: 0 | H11: 105.616 | I11: =H11/111.561 -> 0.9467107681 | J11: 18.93421536 | K11: 79.9647058 | L11: 7.875 | M11: 0 | N11: 87.8397058 | O11: =N11/89.216667 -> 0.9845660991 | P11: 68.91962693 | Q11: 100 | R11: 4.666666667 | S11: 0 | T11: 104.6666667 | U11: =T11/115.333333333333 -> 0.9075144509 | V11: =10*U11 -> 9.075144509 | W11: 96.92898681 | X11: 1
A12: 10 | B12: 2023210532 | C12: 刘新悦 | D12: 工艺学硕 | E12: 97.086 | F12: 2 | G12: 0 | H12: 99.086 | I12: 0.8881777682 | J12: 17.76355536 | K12: 88.466667 | L12: 0.75 | M12: 0 | N12: 89.216667 | O12: 1 | P12: 70 | Q12: 100 | R12: 0 | S12: 0 | T12: 100 | U12: 0.8670520231 | V12: 8.670520231 | W12: 96.4340756 | X12: 2
A13: 11 | B13: 2023210578 | C13: 张晓军 | D13: 工艺学硕 | E13: 97.086 | F13: 1 | G13: 0 | H13: 98.086 | I13: 0.8792140623 | J13: 17.58428125 | K13: 88.2035297 | L13: 0 | M13: 0 | N13: 88.2035297 | O13: 0.9886440804 | P13: 69.20508563 | Q13: 100 | R13: 0 | S13: 0 | T13: 100 | U13: 0.8670520231 | V13: 8.670520231 | W13: 95.4598871 | X13: 3
A14: 12 | B14: 2023210564 | C14: 邵冰雪 | D14: 工艺学硕 | E14: 97.261 | F14: 14.3 | G14: 0 | H14: 111.561 | I14: 1 | J14: 20 | K14: 85.0088232 | L14: 0 | M14: 0 | N14: 85.0088232 | O14: 0.9528356759 | P14: 66.69849731 | Q14: 100 | R14: 0 | S14: 0 | T14: 100 | U14: 0.8670520231 | V14: 8.670520231 | W14: 95.36901754 | X14: 4
A15: 13 | B15: 2023210533 | C15: 岳子芊 | D15: 工艺学硕 | E15: 97.121 | F15: 4 | G15: 0 | H15: 101.121 | I15: 0.9064189098 | J15: 18.1283782 | K15: 87.2000002 | L15: 0 | M15: 0 | N15: 87.2000002 | O15: 0.9773958514 | P15: 68.4177096 | Q15: 100 | R15: 0 | S15: 0 | T15: 100 | U15: 0.8670520231 | V15: 8.670520231 | W15: 95.21660802 | X15: 5
A16: 14 | B16: 2023210519 | C16: 成一同 | D16: 工艺学硕 | E16: 97.191 | F16: 0 | G16: 0 | H16: 97.191 | I16: 0.8711915454 | J16: 17.42383091 | K16: 87.3055554 | L16: 0 | M16: 0 | N16: 87.3055554 | O16: 0.9785789846 | P16: 68.50052892 | Q16: 100 | R16: 0 | S16: 0 | T16: 100 | U16: 0.8670520231 | V16: 8.670520231 | W16: 94.59488006 | X16: 6
A17: 15 | B17: 2023210576 | C17: 刘浏杨 | D17: 工艺学硕 | E17: 97.121 | F17: 2.5 | G17: 0 | H17: 99.621 | I17: 0.8929733509 | J17: 17.85946702 | K17: 86.6764703 | L17: 0 | M17: 0 | N17: 86.6764703 | O17: 0.9715277785 | P17: 68.0069445 | Q17: 100 | R17: 0 | S17: 0 | T17: 100 | U17: 0.8670520231 | V17: 8.670520231 | W17: 94.53693175 | X17: 7
A18: 16 | B18: 2023210618 | C18: 康鑫胜 | D18: 工艺学硕 | E18: 97.205 | F18: 3 | G18: 0 | H18: 100.205 | I18: 0.8982081552 | J18: 17.9641631 | K18: 86.3611108 | L18: 0 | M18: 0 | N18: 86.3611108 | O18: 0.9679930186 | P18: 67.7595113 | Q18: 100 | R18: 0 | S18: 0 | T18: 100 | U18: 0.8670520231 | V18: 8.670520231 | W18: 94.39419464 | X18: 8
A19: 17 | B19: 2023210617 | C19: 曹珊 | D19: 工艺学硕 | E19: 97.17 | F19: 1.25 | G19: 0 | H19: 98.42 | I19: 0.8822079401 | J19: 17.6441588 | K19: 86.7666669 | L19: 0 | M19: 0 | N19: 86.7666669 | O19: 0.9725387623 | P19: 68.07771336 | Q19: 100 | R19: 0 | S19: 0 | T19: 100 | U19: 0.8670520231 | V19: 8.670520231 | W19: 94.39239239 | X19: 9
A20: 18 | B20: 2023210600 | C20: 孔令雨 | D20: 工艺学硕 | E20: 97.38 | F20: 13.3 | G20: 0 | H20: 110.68 | I20: 0.9921029751 | J20: 19.8420595 | K20: 81.5670587 | L20: 1.5 | M20: 0 | N20: 83.0670587 | O20: 0.9310710823 | P20: 65.17497576 | Q20: 100 | R20: 8 | S20: 0 | T20: 108 | U20: 0.936416185 | V20: 9.36416185 | W20: 94.38119711 | X20: 10
A21: 19 | B21: 2023210506 | C21: 赵雪 | D21: 工艺学硕 | E21: 97.121 | F21: 9 | G21: 0 | H21: 106.121 | I21: 0.9512374396 | J21: 19.02474879 | K21: 84.8122223 | L21: 0 | M21: 0 | N21: 84.8122223 | O21: 0.9506320417 | P21: 66.54424292 | Q21: 100 | R21: 0 | S21: 0 | T21: 100 | U21: 0.8670520231 | V21: 8.670520231 | W21: 94.23951194 | X21: 11
A22: 20 | B22: 2023210609 | C22: 张妍 | D22: 工艺学硕 | E22: 97.135 | F22: 8 | G22: 0 | H22: 105.135 | I22: 0.9423992255 | J22: 18.84798451 | K22: 85.02 | L22: 0 | M22: 0 | N22: 85.02 | O22: 0.9529609529 | P22: 66.7072667 | Q22: 100 | R22: 0 | S22: 0 | T22: 100 | U22: 0.8670520231 | V22: 8.670520231 | W22: 94.22577145 | X22: 12
A23: 21 | B23: 2023210505 | C23: 申寒飞 | D23: 工艺学硕 | E23: 97.051 | F23: 10.25 | G23: 0 | H23: 107.301 | I23: 0.9618146126 | J23: 19.23629225 | K23: 82.9966669 | L23: 0 | M23: 0 | N23: 82.9966669 | O23: 0.930282084 | P23: 65.11974588 | Q23: 100 | R23: 0 | S23: 0 | T23: 100 | U23: 0.8670520231 | V23: 8.670520231 | W23: 93.02655836 | X23: 13
A24: 22 | B24: 2023210577 | C24: 唐阔 | D24: 工艺学硕 | E24: 97.191 | F24: 1 | G24: 0 | H24: 98.191 | I24: 0.8801552514 | J24: 17.60310503 | K24: 84.925 | L24: 0 | M24: 0 | N24: 84.925 | O24: 0.9518961295 | P24: 66.63272906 | Q24: 100 | R24: 0 | S24: 0 | T24: 100 | U24: 0.8670520231 | V24: 8.670520231 | W24: 92.90635432 | X24: 14
A25: 23 | B25: 2023210596 | C25: 马忍龙 | D25: 工艺学硕 | E25: 97.135 | F25: 6.15 | G25: 0 | H25: 103.285 | I25: 0.9258163695 | J25: 18.51632739 | K25: 83.5588232 | L25: 0 | M25: 0 | N25: 83.5588232 | O25: 0.9365831073 | P25: 65.56081751 | Q25: 100 | R25: 0 | S25: 0 | T25: 100 | U25: 0.8670520231 | V25: 8.670520231 | W25: 92.74766513 | X25: 15
A26: 24 | B26: 2023210563 | C26: 李海鑫 | D26: 工艺学硕 | E26: 97.1 | F26: 6.25 | G26: 0 | H26: 103.35 | I26: 0.9263990104 | J26: 18.52798021 | K26: 83.5277777 | L26: 0 | M26: 0 | N26: 83.5277777 | O26: 0.9362351286 | P26: 65.536459 | Q26: 100 | R26: 0 | S26: 0 | T26: 100 | U26: 0.8670520231 | V26: 8.670520231 | W26: 92.73495944 | X26: 16
A27: 25 | B27: 2023210598 | C27: 钟浩佳 | D27: 工艺学硕 | E27: 97.121 | F27: 5.75 | G27: 0 | H27: 102.871 | I27: 0.9221053953 | J27: 18.44210791 | K27: 83.0788232 | L27: 0 | M27: 0 | N27: 83.0788232 | O27: 0.9312029466 | P27: 65.18420626 | Q27: 100 | R27: 0 | S27: 0 | T27: 100 | U27: 0.8670520231 | V27: 8.670520231 | W27: 92.2968344 | X27: 17
A28: 26 | B28: 2023210599 | C28: 曹梓阳 | D28: 工艺学硕 | E28: 97.226 | F28: 12.5 | G28: 0 | H28: 109.726 | I28: 0.9835515996 | J28: 19.67103199 | K28: 78.8823529 | L28: 2 | M28: 0 | N28: 80.8823529 | O28: 0.9065834403 | P28: 63.46084082 | Q28: 100 | R28: 5.666666667 | S28: 0 | T28: 105.6666667 | U28: 0.9161849711 | V28: 9.161849711 | W28: 92.29372252 | X28: 18
A29: 27 | B29: 2023210619 | C29: 郑天庶 | D29: 工艺学硕 | E29: 97.275 | F29: 3.15 | G29: 0 | H29: 100.425 | I29: 0.9001801705 | J29: 18.00360341 | K29: 81.4666669 | L29: 0 | M29: 0 | N29: 81.4666669 | O29: 0.9131328219 | P29: 63.91929753 | Q29: 100 | R29: 15.33333333 | S29: 0 | T29: 115.3333333 | U29: 1 | V29: 10 | W29: 91.92290094 | X29: 19
A30: 28 | B30: 2023210555 | C30: 王诗琪 | D30: 工艺学硕 | E30: 97.065 | F30: 4.65 | G30: 0 | H30: 101.715 | I30: 0.9117433512 | J30: 18.23486702 | K30: 82.1882355 | L30: 0 | M30: 0 | N30: 82.1882355 | O30: 0.9212206448 | P30: 64.48544514 | Q30: 100 | R30: 0 | S30: 0 | T30: 100 | U30: 0.8670520231 | V30: 8.670520231 | W30: 91.39083239 | X30: 20
A31: 29 | B31: 2023210547 | C31: 张海城 | D31: 工艺学硕 | E31: 97.156 | F31: 0 | G31: 0 | H31: 97.156 | I31: 0.8708778157 | J31: 17.41755631 | K31: 82.8166679 | L31: 0 | M31: 0 | N31: 82.8166679 | O31: 0.9282645349 | P31: 64.97851744 | Q31: 100 | R31: 0 | S31: 0 | T31: 100 | U31: 0.8670520231 | V31: 8.670520231 | W31: 91.06659399 | X31: 21
A32: 30 | B32: 2023210612 | C32: 佟彤 | D32: 工艺学硕 | E32: 97.226 | F32: 4 | G32: 0 | H32: 101.226 | I32: 0.907360099 | J32: 18.14720198 | K32: 81.7333331 | L32: 0 | M32: 0 | N32: 81.7333331 | O32: 0.9161217948 | P32: 64.12852564 | Q32: 100 | R32: 0 | S32: 0 | T32: 100 | U32: 0.8670520231 | V32: 8.670520231 | W32: 90.94624785 | X32: 22
A33: 31 | B33: 2023210558 | C33: 白宇欣 | D33: 工艺学硕 | E33: 97.31 | F33: 13.6 | G33: 0 | H33: 110.91 | I33: 0.9941646274 | J33: 19.88329255 | K33: 79.4 | L33: 0 | M33: 0 | N33: 79.4 | O33: 0.8899682388 | P33: 62.29777671 | Q33: 100 | R33: 0 | S33: 0 | T33: 100 | U33: 0.8670520231 | V33: 8.670520231 | W33: 90.85158949 | X33: 23
A34: 32 | B34: 2023210523 | C34: 高文倩 | D34: 工艺学硕 | E34: 97.205 | F34: 5.75 | G34: 0 | H34: 102.955 | I34: 0.9228583466 | J34: 18.45716693 | K34: 80.88 | L34: 0 | M34: 0 | N34: 80.88 | O34: 0.9065570674 | P34: 63.45899472 | Q34: 100 | R34: 0 | S34: 0 | T34: 100 | U34: 0.8670520231 | V34: 8.670520231 | W34: 90.58668188 | X34: 24
A35: 33 | B35: 2023210607 | C35: 曹亦捷 | D35: 工艺学硕 | E35: 97.016 | F35: 5 | G35: 0 | H35: 102.016 | I35: 0.9144414267 | J35: 18.28882853 | K35: 80.98 | L35: 0 | M35: 0 | N35: 80.98 | O35: 0.9076779342 | P35: 63.53745539 | Q35: 100 | R35: 0 | S35: 0 | T35: 100 | U35: 0.8670520231 | V35: 8.670520231 | W35: 90.49680416 | X35: 25
A36: 34 | B36: 2023210597 | C36: 任锦添 | D36: 工艺学硕 | E36: 97.121 | F36: 5.5 | G36: 0 | H36: 102.621 | I36: 0.9198644688 | J36: 18.39728938 | K36: 80.8205884 | L36: 0 | M36: 0 | N36: 80.8205884 | O36: 0.9058911425 | P36: 63.41237998 | Q36: 100 | R36: 0 | S36: 0 | T36: 100 | U36: 0.8670520231 | V36: 8.670520231 | W36: 90.48018958 | X36: 26
A37: 35 | B37: 2023210524 | C37: 刘士花 | D37: 工艺学硕 | E37: 97.156 | F37: 8 | G37: 0 | H37: 105.156 | I37: 0.9425874634 | J37: 18.85174927 | K37: 80.19 | L37: 0 | M37: 0 | N37: 80.19 | O37: 0.8988230865 | P37: 62.91761605 | Q37: 100 | R37: 0 | S37: 0 | T37: 100 | U37: 0.8670520231 | V37: 8.670520231 | W37: 90.43988555 | X37: 27
A38: 36 | B38: 2023210534 | C38: 张则扬 | D38: 工艺学硕 | E38: 97.086 | F38: 0 | G38: 0 | H38: 97.086 | I38: 0.8702503563 | J38: 17.40500713 | K38: 81.8666669 | L38: 0 | M38: 0 | N38: 81.8666669 | O38: 0.9176162891 | P38: 64.23314024 | Q38: 100 | R38: 0 | S38: 0 | T38: 100 | U38: 0.8670520231 | V38: 8.670520231 | W38: 90.3086676 | X38: 28
A39: 37 | B39: 2023210610 | C39: 崔锦峰 | D39: 工艺学硕 | E39: 97.226 | F39: 2.75 | G39: 0 | H39: 99.976 | I39: 0.8961554665 | J39: 17.92310933 | K39: 80.59 | L39: 0 | M39: 0 | N39: 80.59 | O39: 0.9033065537 | P39: 63.23145876 | Q39: 100 | R39: 0 | S39: 0 | T39: 100 | U39: 0.8670520231 | V39: 8.670520231 | W39: 89.82508832 | X39: 29
A40: 38 | B40: 2023210562 | C40: 程学智 | D40: 工艺学硕 | E40: 97.17 | F40: 0 | G40: 0 | H40: 97.17 | I40: 0.8710033076 | J40: 17.42006615 | K40: 80.4666668 | L40: 0 | M40: 0 | N40: 80.4666668 | O40: 0.9019241528 | P40: 63.1346907 | Q40: 100 | R40: 0 | S40: 0 | T40: 100 | U40: 0.8670520231 | V40: 8.670520231 | W40: 89.22527708 | X40: 30
A41: 39 | B41: 2023210594 | C41: 蒋洁 | D41: 工艺学硕 | E41: 97.016 | F41: 0 | G41: 0 | H41: 97.016 | I41: 0.8696228969 | J41: 17.39245794 | K41: 80.4 | L41: 0 | M41: 0 | N41: 80.4 | O41: 0.9011769068 | P41: 63.08238347 | Q41: 100 | R41: 0 | S41: 0 | T41: 100 | U41: 0.8670520231 | V41: 8.670520231 | W41: 89.14536164 | X41: 31
A42: 40 | B42: 2023210574 | C42: 姜冬雪 | D42: 工艺学硕 | E42: 97.31 | F42: 11.3 | G42: 0 | H42: 108.61 | I42: 0.9735481037 | J42: 19.47096207 | K42: 77.5684212 | L42: 0 | M42: 0 | N42: 77.5684212 | O42: 0.8694386801 | P42: 60.86070761 | Q42: 100 | R42: 0 | S42: 0 | T42: 100 | U42: 0.8670520231 | V42: 8.670520231 | W42: 89.00218991 | X42: 32
A43: 41 | B43: 2023210554 | C43: 张琛 | D43: 工艺学硕 | E43: 97.135 | F43: 0.5 | G43: 0 | H43: 97.635 | I43: 0.8751714309 | J43: 17.50342862 | K43: 77.1647058 | L43: 1.875 | M43: 0 | N43: 79.0397058 | O43: 0.8859298207 | P43: 62.01508745 | Q43: 100 | R43: 0 | S43: 0 | T43: 100 | U43: 0.8670520231 | V43: 8.670520231 | W43: 88.1890363 | X43: 33
A44: 42 | B44: 2023210614 | C44: 袁雨涵 | D44: 工艺学硕 | E44: 97.135 | F44: 5.15 | G44: 0 | H44: 102.285 | I44: 0.9168526636 | J44: 18.33705327 | K44: 77.4176471 | L44: 0 | M44: 0 | N44: 77.4176471 | O44: 0.8677487033 | P44: 60.74240923 | Q44: 100 | R44: 0 | S44: 0 | T44: 100 | U44: 0.8670520231 | V44: 8.670520231 | W44: 87.74998273 | X44: 34
A45: 43 | B45: 2023210559 | C45: 王汉卿 | D45: 工艺学硕 | E45: 97.226 | F45: 3 | G45: 0 | H45: 100.226 | I45: 0.898396393 | J45: 17.96792786 | K45: 76.2666669 | L45: 0 | M45: 0 | N45: 76.2666669 | O45: 0.8548477483 | P45: 59.83934238 | Q45: 100 | R45: 6.666666667 | S45: 0 | T45: 106.6666667 | U45: 0.9248554913 | V45: 9.248554913 | W45: 87.05582516 | X45: 35
A46: 44 | B46: 2023210611 | C46: 史国靖 | D46: 工艺学硕 | E46: 97.226 | F46: 0 | G46: 0 | H46: 97.226 | I46: 0.8715052751 | J46: 17.4301055 | K46: 77.6722223 | L46: 0 | M46: 0 | N46: 77.6722223 | O46: 0.8706021522 | P46: 60.94215065 | Q46: 100 | R46: 0 | S46: 0 | T46: 100 | U46: 0.8670520231 | V46: 8.670520231 | W46: 87.04277639 | X46: 36
A47: 45 | B47: 2023210520 | C47: 鹿兰停 | D47: 工艺学硕 | E47: 97.24 | F47: 0 | G47: 0 | H47: 97.24 | I47: 0.871630767 | J47: 17.43261534 | K47: 77.5888892 | L47: 0 | M47: 0 | N47: 77.5888892 | O47: 0.8696680991 | P47: 60.87676694 | Q47: 100 | R47: 0 | S47: 0 | T47: 100 | U47: 0.8670520231 | V47: 8.670520231 | W47: 86.97990251 | X47: 37
A48: 46 | B48: 2023210556 | C48: 张子硕 | D48: 工艺学硕 | E48: 97.086 | F48: 8.15 | G48: 0 | H48: 105.236 | I48: 0.9433045598 | J48: 18.8660912 | K48: 74.5722223 | L48: 0 | M48: 0 | N48: 74.5722223 | O48: 0.8358552814 | P48: 58.5098697 | Q48: 100 | R48: 8 | S48: 0 | T48: 108 | U48: 0.936416185 | V48: 9.36416185 | W48: 86.74012274 | X48: 38
A49: 47 | B49: 2023210593 | C49: 储东昊 | D49: 工艺学硕 | E49: 97.226 | F49: 0 | G49: 0 | H49: 97.226 | I49: 0.8715052751 | J49: 17.4301055 | K49: 76.6666669 | L49: 0 | M49: 0 | N49: 76.6666669 | O49: 0.8593312155 | P49: 60.15318509 | Q49: 100 | R49: 0 | S49: 0 | T49: 100 | U49: 0.8670520231 | V49: 8.670520231 | W49: 86.25381082 | X49: 39
A50: 48 | B50: 2023210613 | C50: 石聪超 | D50: 工艺学硕 | E50: 97.1 | F50: 3 | G50: 0 | H50: 100.1 | I50: 0.8972669661 | J50: 17.94533932 | K50: 75.0944436 | L50: 0 | M50: 0 | N50: 75.0944436 | O50: 0.8417086866 | P50: 58.91960806 | Q50: 100 | R50: 0 | S50: 0 | T50: 100 | U50: 0.8670520231 | V50: 8.670520231 | W50: 85.53546761 | X50: 40
A51: 49 | B51: 2023210575 | C51: 许世昌 | D51: 工艺学硕 | E51: 97.205 | F51: 2.25 | G51: 0 | H51: 99.455 | I51: 0.8914853757 | J51: 17.82970751 | K51: 74.9631576 | L51: 0 | M51: 0 | N51: 74.9631576 | O51: 0.8402371454 | P51: 58.81660018 | Q51: 100 | R51: 0 | S51: 0 | T51: 100 | U51: 0.8670520231 | V51: 8.670520231 | W51: 85.31682792 | X51: 41

Sheet 工艺专硕
A1: 序号 | B1: 学号 | C1: 姓名 | D1: 方向 | E1: 德育成绩 | K1: 智育成绩 | Q1: 文体成绩 | W1: 总分 | X1: 排名
E2: 基础分 | F2: 奖励分 | G2: 惩罚分 | H2: 个人德育总分 | I2: 个人德育总分/基准 | J2: 德育总成绩 | K2: 基础分 | L2: 奖励分 | M2: 惩罚分 | N2: 个人智育总分 | O2: 个人智育总分/基准 | P2: 智育总成绩 | Q2: 基础分 | R2: 奖励分 | S2: 惩罚分 | T2: 个人文体总分 | U2: 个人文体总分/基准 | V2: 文体总成绩
A3: 1 | B3: 2023215349 | C3: 谢清宝 | D3: 化学工艺 | E3: 97.428125 | F3: 13 | G3: 0 | H3: 110.428125 | I3: 0.9707829382 | J3: 97.07829382 | K3: 88.82368421 | L3: 11.33333333 | M3: 0 | N3: 100.1570175 | O3: 1 | P3: 100 | Q3: 100 | R3: 3.33333333 | S3: 0 | T3: 103.3333333 | U3: 0.96875 | V3: 96.875 | W3: 99.1031588 | X3: 1
A4: 2 | B4: 2023215368 | C4: 郑隽琳 | D4: 化学工艺 | E4: 97.5375 | F4: 9 | G4: 0 | H4: 106.5375 | I4: 0.9365801265 | J4: 93.65801265 | K4: 89.57815126 | L4: 0 | M4: 0 | N4: 89.57815126 | O4: 0.8943771835 | P4: 89.43771835 | Q4: 100 | R4: 0 | S4: 0 | T4: 100 | U4: 0.9375 | V4: 93.75 | W4: 90.7130054 | X4: 2
A5: 3 | B5: 2023215358 | C5: 薛福禄 | D5: 化学工艺 | E5: 97.5516129 | F5: 16.2 | G5: 0 | H5: 113.7516129 | I5: 1 | J5: 100 | K5: 84.00833333 | L5: 1.333333333 | M5: 0 | N5: 85.34166667 | O5: 0.8520787535 | P5: 85.20787535 | Q5: 100 | R5: 3.733333333 | S5: 0 | T5: 103.7333333 | U5: 0.9725 | V5: 97.25 | W5: 89.37051275 | X5: 3
A6: 4 | B6: 2023215377 | C6: 高鹏飞 | D6: 化学工艺 | E6: 97.40625 | F6: 7.15 | G6: 0 | H6: 104.55625 | I6: 0.919162791 | J6: 91.9162791 | K6: 87.96111111 | L6: 0 | M6: 0 | N6: 87.96111111 | O6: 0.8782321326 | P6: 87.82321326 | Q6: 100 | R6: 0 | S6: 0 | T6: 100 | U6: 0.9375 | V6: 93.75 | W6: 89.2345051 | X6: 4
A7: 5 | B7: 2023215366 | C7: 王阔博 | D7: 化学工艺 | E7: 97.40625 | F7: 6.5 | G7: 0 | H7: 103.90625 | I7: 0.9134485863 | J7: 91.34485863 | K7: 83.96029412 | L7: 3.75 | M7: 0 | N7: 87.71029412 | O7: 0.8757278947 | P7: 87.57278947 | Q7: 100 | R7: 0 | S7: 0 | T7: 100 | U7: 0.9375 | V7: 93.75 | W7: 88.94492436 | X7: 5
A8: 6 | B8: 2023215369 | C8: 董俊妍 | D8: 化学工艺 | E8: 97.40625 | F8: 7.25 | G8: 0 | H8: 104.65625 | I8: 0.9200418994 | J8: 92.00418994 | K8: 86.02857143 | L8: 0 | M8: 0 | N8: 86.02857143 | O8: 0.8589370325 | P8: 85.89370325 | Q8: 100 | R8: 0 | S8: 0 | T8: 100 | U8: 0.9375 | V8: 93.75 | W8: 87.90143026 | X8: 6
A9: 7 | B9: 2023215364 | C9: 迟坚全 | D9: 化学工艺 | E9: 97.40625 | F9: 9.25 | G9: 0 | H9: 106.65625 | I9: 0.9376240677 | J9: 93.76240677 | K9: 85.43888889 | L9: 0 | M9: 0 | N9: 85.43888889 | O9: 0.8530494516 | P9: 85.30494516 | Q9: 100 | R9: 0 | S9: 0 | T9: 100 | U9: 0.9375 | V9: 93.75 | W9: 87.84094297 | X9: 7
A10: 8 | B10: 2023215374 | C10: 胡航 | D10: 化学工艺 | E10: 97.49375 | F10: 10.5 | G10: 0 | H10: 107.99375 | I10: 0.9493821428 | J10: 94.93821428 | K10: 83.76764706 | L10: 0 | M10: 0 | N10: 83.76764706 | O10: 0.8363632336 | P10: 83.63632336 | Q10: 100 | R10: 0 | S10: 0 | T10: 100 | U10: 0.9375 | V10: 93.75 | W10: 86.90806921 | X10: 8
A11: 9 | B11: 2023215357 | C11: 刘琦 | D11: 化学工艺 | E11: 97.40625 | F11: 6.5 | G11: 0 | H11: 103.90625 | I11: 0.9134485863 | J11: 91.34485863 | K11: 84.64166667 | L11: 0 | M11: 0 | N11: 84.64166667 | O11: 0.8450897275 | P11: 84.50897275 | Q11: 100 | R11: 0 | S11: 0 | T11: 100 | U11: 0.9375 | V11: 93.75 | W11: 86.80025265 | X11: 9
A12: 10 | B12: 2023215381 | C12: 刘亚洁 | D12: 化学工艺 | E12: 97.384375 | F12: 6.5 | G12: 0 | H12: 103.884375 | I12: 0.9132562814 | J12: 91.32562814 | K12: 84.27777778 | L12: 0 | M12: 0 | N12: 84.27777778 | O12: 0.8414565434 | P12: 84.14565434 | Q12: 100 | R12: 0 | S12: 0 | T12: 100 | U12: 0.9375 | V12: 93.75 | W12: 86.54208366 | X12: 10
A13: 11 | B13: 2023215344 | C13: 范思洁 | D13: 化学工艺 | E13: 97.340625 | F13: 11.5 | G13: 0 | H13: 108.840625 | I13: 0.9568270921 | J13: 95.68270921 | K13: 82.87784091 | L13: 0 | M13: 0 | N13: 82.87784091 | O13: 0.8274791217 | P13: 82.74791217 | Q13: 100 | R13: 0 | S13: 0 | T13: 100 | U13: 0.9375 | V13: 93.75 | W13: 86.43508036 | X13: 11
A14: 12 | B14: 2023215350 | C14: 郭玉乾 | D14: 化学工艺 | E14: 97.5375 | F14: 5 | G14: 0 | H14: 102.5375 | I14: 0.9014157899 | J14: 90.14157899 | K14: 84.27794118 | L14: 0 | M14: 0 | N14: 84.27794118 | O14: 0.8414581748 | P14: 84.14581748 | Q14: 100 | R14: 0 | S14: 0 | T14: 100 | U14: 0.9375 | V14: 93.75 | W14: 86.30538803 | X14: 12
A15: 13 | B15: 2023215375 | C15: 刘佳 | D15: 化学工艺 | E15: 97.428125 | F15: 0.5 | G15: 0 | H15: 97.928125 | I15: 0.8608943865 | J15: 86.08943865 | K15: 85.25 | L15: 0 | M15: 0 | N15: 85.25 | O15: 0.8511635239 | P15: 85.11635239 | Q15: 100 | R15: 0 | S15: 0 | T15: 100 | U15: 0.9375 | V15: 93.75 | W15: 86.17433441 | X15: 13
A16: 14 | B16: 2023215315 | C16: 李春晖 | D16: 化学工艺 | E16: 97.340625 | F16: 0 | G16: 0 | H16: 97.340625 | I16: 0.8557296245 | J16: 85.57296245 | K16: 84.44166667 | L16: 0 | M16: 0 | N16: 84.44166667 | O16: 0.843092863 | P16: 84.3092863 | Q16: 100 | R16: 6.666666667 | S16: 0 | T16: 106.6666667 | U16: 1 | V16: 100 | W16: 86.1310929 | X16: 14
A17: 15 | B17: 2023215336 | C17: 章伟 | D17: 化学工艺 | E17: 97.515625 | F17: 2.75 | G17: 0 | H17: 100.265625 | I17: 0.8814435456 | J17: 88.14435456 | K17: 84.54 | L17: 0 | M17: 0 | N17: 84.54 | O17: 0.8440746547 | P17: 84.40746547 | Q17: 100 | R17: 0 | S17: 0 | T17: 100 | U17: 0.9375 | V17: 93.75 | W17: 86.08909674 | X17: 15
A18: 16 | B18: 2023215356 | C18: 焦雪燕 | D18: 化学工艺 | E18: 97.428125 | F18: 2 | G18: 0 | H18: 99.428125 | I18: 0.8740810127 | J18: 87.40810127 | K18: 84.21578947 | L18: 0 | M18: 0 | N18: 84.21578947 | O18: 0.8408376321 | P18: 84.08376321 | Q18: 100 | R18: 0 | S18: 0 | T18: 100 | U18: 0.9375 | V18: 93.75 | W18: 85.7152545 | X18: 16
A19: 17 | B19: 2023215342 | C19: 张雨 | D19: 化学工艺 | E19: 97.384375 | F19: 8.65 | G19: 0 | H19: 106.034375 | I19: 0.9321571123 | J19: 93.21571123 | K19: 82.37777778 | L19: 0 | M19: 0 | N19: 82.37777778 | O19: 0.8224863299 | P19: 82.24863299 | Q19: 100 | R19: 0 | S19: 0 | T19: 100 | U19: 0.9375 | V19: 93.75 | W19: 85.59218534 | X19: 17
A20: 18 | B20: 2023215371 | C20: 朱镜宇 | D20: 化学工艺 | E20: 97.49375 | F20: 7 | G20: 0 | H20: 104.49375 | I20: 0.9186133483 | J20: 91.86133483 | K20: 82.46470588 | L20: 0 | M20: 0 | N20: 82.46470588 | O20: 0.8233542482 | P20: 82.33542482 | Q20: 100 | R20: 0 | S20: 0 | T20: 100 | U20: 0.9375 | V20: 93.75 | W20: 85.38206434 | X20: 18
A21: 19 | B21: 2023215340 | C21: 肖婷 | D21: 化学工艺 | E21: 97.471875 | F21: 8.15 | G21: 0 | H21: 105.621875 | I21: 0.9285307901 | J21: 92.85307901 | K21: 81.29915966 | L21: 0 | M21: 0 | N21: 81.29915966 | O21: 0.8117170585 | P21: 81.17170585 | Q21: 100 | R21: 2 | S21: 0 | T21: 102 | U21: 0.95625 | V21: 95.625 | W21: 84.95330989 | X21: 19
A22: 20 | B22: 2023215367 | C22: 张想 | D22: 化学工艺 | E22: 97.471875 | F22: 7.25 | G22: 0 | H22: 104.721875 | I22: 0.9206188143 | J22: 92.06188143 | K22: 81.625 | L22: 0 | M22: 0 | N22: 81.625 | O22: 0.8149703536 | P22: 81.49703536 | Q22: 100 | R22: 0 | S22: 0 | T22: 100 | U22: 0.9375 | V22: 93.75 | W22: 84.83530104 | X22: 20
A23: 21 | B23: 2023215378 | C23: 马龙巍 | D23: 化学工艺 | E23: 97.49375 | F23: 0.75 | G23: 0 | H23: 98.24375 | I23: 0.8636690724 | J23: 86.36690724 | K23: 83.21911765 | L23: 0 | M23: 0 | N23: 83.21911765 | O23: 0.8308865388 | P23: 83.08865388 | Q23: 100 | R23: 0 | S23: 0 | T23: 100 | U23: 0.9375 | V23: 93.75 | W23: 84.81043917 | X23: 21
A24: 22 | B24: 2023215325 | C24: 丁风瑞 | D24: 化学工艺 | E24: 97.471875 | F24: 2 | G24: 0 | H24: 99.471875 | I24: 0.8744656226 | J24: 87.44656226 | K24: 82.48088235 | L24: 0 | M24: 0 | N24: 82.48088235 | O24: 0.8235157593 | P24: 82.35157593 | Q24: 100 | R24: 0 | S24: 0 | T24: 100 | U24: 0.9375 | V24: 93.75 | W24: 84.5104156 | X24: 22
A25: 23 | B25: 2023215359 | C25: 田宇萌 | D25: 化学工艺 | E25: 97.49375 | F25: 0.5 | G25: 0 | H25: 97.99375 | I25: 0.8614713014 | J25: 86.14713014 | K25: 82.6625 | L25: 0 | M25: 0 | N25: 82.6625 | O25: 0.8253290885 | P25: 82.53290885 | Q25: 100 | R25: 0 | S25: 0 | T25: 100 | U25: 0.9375 | V25: 93.75 | W25: 84.37746222 | X25: 23
A26: 24 | B26: 2023215365 | C26: 王静 | D26: 化学工艺 | E26: 97.31875 | F26: 5 | G26: 0 | H26: 102.31875 | I26: 0.8994927403 | J26: 89.94927403 | K26: 80.25555556 | L26: 1.25 | M26: 0 | N26: 81.50555556 | O26: 0.8137777817 | P26: 81.37777817 | Q26: 100 | R26: 0 | S26: 0 | T26: 100 | U26: 0.9375 | V26: 93.75 | W26: 84.32929952 | X26: 24
A27: 25 | B27: 2023215383 | C27: 张诗悦 | D27: 化学工艺 | E27: 97.45 | F27: 7 | G27: 0 | H27: 104.45 | I27: 0.9182287383 | J27: 91.82287383 | K27: 80.37777778 | L27: 0 | M27: 0 | N27: 80.37777778 | O27: 0.8025176842 | P27: 80.25176842 | Q27: 100 | R27: 0 | S27: 0 | T27: 100 | U27: 0.9375 | V27: 93.75 | W27: 83.91581266 | X27: 25
A28: 26 | B28: 2023215305 | C28: 于晓雯 | D28: 化学工艺 | E28: 97.603125 | F28: 5 | G28: 0 | H28: 102.603125 | I28: 0.9019927048 | J28: 90.19927048 | K28: 80.025 | L28: 0 | M28: 0 | N28: 80.025 | O28: 0.798995437 | P28: 79.8995437 | Q28: 100 | R28: 0 | S28: 0 | T28: 100 | U28: 0.9375 | V28: 93.75 | W28: 83.34453469 | X28: 26
A29: 27 | B29: 2023215348 | C29: 郝良贤 | D29: 化学工艺 | E29: 97.49375 | F29: 2 | G29: 0 | H29: 99.49375 | I29: 0.8746579276 | J29: 87.46579276 | K29: 80.74375 | L29: 0 | M29: 0 | N29: 80.74375 | O29: 0.806171669 | P29: 80.6171669 | Q29: 100 | R29: 0 | S29: 0 | T29: 100 | U29: 0.9375 | V29: 93.75 | W29: 83.30017538 | X29: 27
A30: 28 | B30: 2023215345 | C30: 况博 | D30: 化学工艺 | E30: 97.340625 | F30: 1.5 | G30: 0 | H30: 98.840625 | I30: 0.8689162507 | J30: 86.89162507 | K30: 79.53823529 | L30: 0 | M30: 0 | N30: 79.53823529 | O30: 0.794135421 | P30: 79.4135421 | Q30: 100 | R30: 0 | S30: 0 | T30: 100 | U30: 0.9375 | V30: 93.75 | W30: 82.34280449 | X30: 28
A31: 29 | B31: 2023215319 | C31: 宋晓 | D31: 化学工艺 | E31: 97.340625 | F31: 7 | G31: 0 | H31: 104.340625 | I31: 0.9172672135 | J31: 91.72672135 | K31: 77.59722222 | L31: 0 | M31: 0 | N31: 77.59722222 | O31: 0.7747557198 | P31: 77.47557198 | Q31: 100 | R31: 0 | S31: 0 | T31: 100 | U31: 0.9375 | V31: 93.75 | W31: 81.95324466 | X31: 29
A32: 30 | B32: 2023215320 | C32: 张荣坤 | D32: 化学工艺 | E32: 97.384375 | F32: 5 | G32: 0 | H32: 102.384375 | I32: 0.9000696552 | J32: 90.00696552 | K32: 76.76666667 | L32: 0 | M32: 0 | N32: 76.76666667 | O32: 0.766463185 | P32: 76.6463185 | Q32: 100 | R32: 0 | S32: 0 | T32: 100 | U32: 0.9375 | V32: 93.75 | W32: 81.02881605 | X32: 30
A33: 31 | B33: 2023215382 | C33: 潘新卓 | D33: 化学工艺 | E33: 97.428125 | F33: 6 | G33: 0 | H33: 103.428125 | I33: 0.9092453492 | J33: 90.92453492 | K33: 76.21111111 | L33: 0 | M33: 0 | N33: 76.21111111 | O33: 0.760916339 | P33: 76.0916339 | Q33: 100 | R33: 0 | S33: 0 | T33: 100 | U33: 0.9375 | V33: 93.75 | W33: 80.82405071 | X33: 31
A34: 32 | B34: 2023215337 | C34: 赵琳 | D34: 化学工艺 | E34: 97.384375 | F34: 4.8 | G34: 30 | H34: 72.184375 | I34: 0.6345789142 | J34: 63.45789142 | K34: 74.59722222 | L34: 0 | M34: 0 | N34: 74.59722222 | O34: 0.7448027512 | P34: 74.48027512 | Q34: 100 | R34: 0 | S34: 0 | T34: 100 | U34: 0.9375 | V34: 93.75 | W34: 74.20277087 | X34: 32
A35: 33 | B35: 2023215341 | C35: 李珍蓉 | D35: 化学工艺 | E35: 97.471875 | F35: 4 | G35: 30 | H35: 71.471875 | I35: 0.6283152667 | J35: 62.83152667 | K35: 67.68333333 | L35: 0 | M35: 0 | N35: 67.68333333 | O35: 0.6757722523 | P35: 67.57722523 | Q35: 100 | R35: 0 | S35: 0 | T35: 100 | U35: 0.9375 | V35: 93.75 | W35: 69.245363 | X35: 33

Sheet 工程学硕
A1: 序号 | B1: 学号 | C1: 姓名 | D1: 方向 | E1: 德育成绩 | K1: 智育成绩 | Q1: 文体成绩 | W1: 总分 | X1: 排名
E2: 基础分 | F2: 奖励分 | G2: 惩罚分 | H2: 个人德育总分 | I2: 个人德育总分/基准 | J2: 德育总成绩 | K2: 基础分 | L2: 奖励分 | M2: 惩罚分 | N2: 个人智育总分 | O2: 个人智育总分/基准 | P2: 智育总成绩 | Q2: 基础分 | R2: 奖励分 | S2: 惩罚分 | T2: 个人文体总分 | U2: 个人文体总分/基准 | V2: 文体总成绩
A3: 1 | B3: 2022210597 | C3: 刘宇 | D3: 工程学硕 | E3: — | F3: — | G3: — | H3: — | I3: — | J3: — | K3: — | L3: — | M3: — | N3: — | O3: — | P3: — | Q3: — | R3: — | S3: — | T3: — | U3: — | V3: — | W3: — | X3: — | Y3: 助管
A4: 2 | B4: 2022210607 | C4: 林海 | D4: 工程学硕 | E4: — | F4: — | G4: — | H4: — | I4: — | J4: — | K4: — | L4: — | M4: — | N4: — | O4: — | P4: — | Q4: — | R4: — | S4: — | T4: — | U4: — | V4: — | W4: — | X4: — | Y4: 助管
A5: 3 | B5: 2022210553 | C5: 亢华旭 | D5: 工程学硕 | E5: — | F5: — | G5: — | H5: — | I5: — | J5: — | K5: — | L5: — | M5: — | N5: — | O5: — | P5: — | Q5: — | R5: — | S5: — | T5: — | U5: — | V5: — | W5: — | X5: — | Y5: 兼职辅导员
A6: 4 | B6: 2023210545 | C6: 张帅 | D6: 工程学硕 | E6: 96.53658537 | F6: 16.76666667 | G6: 0 | H6: 113.303252 | I6: 1 | J6: 100 | K6: 85.92222222 | L6: 8 | M6: 0 | N6: 93.92222222 | O6: 1 | P6: 100 | Q6: 100 | R6: 4.933333333 | S6: 0 | T6: 104.9333333 | U6: 0.9716049383 | V6: 97.16049383 | W6: =J6*0.2+P6*0.7+V6*0.1 -> 99.71604938 | X6: 1
A7: 5 | B7: 2023210538 | C7: 贾舒涵 | D7: 工程学硕 | E7: 96.1097561 | F7: 8.6 | G7: 0 | H7: 104.7097561 | I7: 0.9241549048 | J7: 92.41549048 | K7: 90.81578947 | L7: 0 | M7: 0 | N7: 90.81578947 | O7: 0.9669254765 | P7: 96.69254765 | Q7: 100 | R7: 0 | S7: 0 | T7: 100 | U7: 0.9259259259 | V7: 92.59259259 | W7: =J7*0.2+P7*0.7+V7*0.1 -> 95.42714071 | X7: 2
A8: 6 | B8: 2023210551 | C8: 卢非赣 | D8: 工程学硕 | E8: 96.1097561 | F8: 9.5 | G8: 0 | H8: 105.6097561 | I8: 0.9320981896 | J8: 93.20981896 | K8: 88.68588235 | L8: 0.6 | M8: 0 | N8: 89.28588235 | O8: 0.9506363908 | P8: 95.06363908 | Q8: 100 | R8: 4.666666667 | S8: 0 | T8: 104.6666667 | U8: 0.9691358025 | V8: 96.91358025 | W8: 94.87786917 | X8: 3
A9: 7 | B9: 2023210510 | C9: 刘沐忺 | D9: 工程学硕 | E9: 96.31463415 | F9: 11 | G9: 0 | H9: 107.3146341 | I9: 0.9471452251 | J9: 94.71452251 | K9: 87.33684211 | L9: 0.375 | M9: 0 | N9: 87.71184211 | O9: 0.9338774151 | P9: 93.38774151 | Q9: 100 | R9: 1.6 | S9: 0 | T9: 101.6 | U9: 0.9407407407 | V9: 94.07407407 | W9: 93.72173097 | X9: 4
A10: 8 | B10: 2023210569 | C10: 饶丹 | D10: 工程学硕 | E10: 96.07560976 | F10: 2.25 | G10: 0 | H10: 98.32560976 | I10: 0.8678092464 | J10: 86.78092464 | K10: 86.13333333 | L10: 3.75 | M10: 0 | N10: 89.88333333 | O10: 0.9569975157 | P10: 95.69975157 | Q10: 100 | R10: 0 | S10: 0 | T10: 100 | U10: 0.9259259259 | V10: 92.59259259 | W10: 93.60527029 | X10: 5
A11: 9 | B11: 2023210580 | C11: 赵乐 | D11: 工程学硕 | E11: 95.83658537 | F11: 1.5 | G11: 0 | H11: 97.33658537 | I11: 0.8590802437 | J11: 85.90802437 | K11: 89.005 | L11: 0 | M11: 0 | N11: 89.005 | O11: 0.9476458062 | P11: 94.76458062 | Q11: 100 | R11: 0 | S11: 0 | T11: 100 | U11: 0.9259259259 | V11: 92.59259259 | W11: 92.77607057 | X11: 6
A12: 10 | B12: 2023210573 | C12: 祝柯欣 | D12: 工程学硕 | E12: 95.85365854 | F12: 9.5 | G12: 0 | H12: 105.3536585 | I12: 0.9298379053 | J12: 92.98379053 | K12: 83.70555556 | L12: 3 | M12: 0 | N12: 86.70555556 | O12: 0.923163374 | P12: 92.3163374 | Q12: 100 | R12: 0 | S12: 0 | T12: 100 | U12: 0.9259259259 | V12: 92.59259259 | W12: 92.47745355 | X12: 7
A13: 11 | B13: 2023210526 | C13: 常阔 | D13: 工程学硕 | E13: 95.71707317 | F13: 2 | G13: 0 | H13: 97.71707317 | I13: 0.8624383803 | J13: 86.24383803 | K13: 88.40909091 | L13: 0 | M13: 0 | N13: 88.40909091 | O13: 0.9413010981 | P13: 94.13010981 | Q13: 100 | R13: 0 | S13: 0 | T13: 100 | U13: 0.9259259259 | V13: 92.59259259 | W13: 92.39910373 | X13: 8
A14: 12 | B14: 2023210513 | C14: 王燕语 | D14: 工程学硕 | E14: 96.38292683 | F14: 4.5 | G14: 0 | H14: 100.8829268 | I14: 0.8903797995 | J14: 89.03797995 | K14: 87.39411765 | L14: 0 | M14: 0 | N14: 87.39411765 | O14: 0.9304945686 | P14: 93.04945686 | Q14: 100 | R14: 0 | S14: 0 | T14: 100 | U14: 0.9259259259 | V14: 92.59259259 | W14: 92.20147505 | X14: 9
A15: 13 | B15: 2023210550 | C15: 李凌宇 | D15: 工程学硕 | E15: 96.05853659 | F15: 3.5 | G15: 0 | H15: 99.55853659 | I15: 0.8786909007 | J15: 87.86909007 | K15: 86.98117647 | L15: 0 | M15: 0 | N15: 86.98117647 | O15: 0.9260979395 | P15: 92.60979395 | Q15: 100 | R15: 4.666666667 | S15: 0 | T15: 104.6666667 | U15: 0.9691358025 | V15: 96.91358025 | W15: 92.0920318 | X15: 10
A16: 14 | B16: 2023210527 | C16: 孔令聪 | D16: 工程学硕 | E16: 95.85365854 | F16: 0 | G16: 0 | H16: 95.85365854 | I16: 0.8459921213 | J16: 84.59921213 | K16: 88.40909091 | L16: 0 | M16: 0 | N16: 88.40909091 | O16: 0.9413010981 | P16: 94.13010981 | Q16: 100 | R16: 0 | S16: 0 | T16: 100 | U16: 0.9259259259 | V16: 92.59259259 | W16: 92.07017855 | X16: 11
A17: 15 | B17: 2023210535 | C17: 王晶 | D17: 工程学硕 | E17: 95.85365854 | F17: 8.75 | G17: 0 | H17: 104.6036585 | I17: 0.9232185013 | J17: 92.32185013 | K17: 85.78 | L17: 0 | M17: 0 | N17: 85.78 | O17: 0.9133088844 | P17: 91.33088844 | Q17: 100 | R17: 0 | S17: 0 | T17: 100 | U17: 0.9259259259 | V17: 92.59259259 | W17: 91.65525119 | X17: 12
A18: 16 | B18: 2023210539 | C18: 赵小强 | D18: 工程学硕 | E18: 95.85365854 | F18: 1.5 | G18: 0 | H18: 97.35365854 | I18: 0.8592309293 | J18: 85.92309293 | K18: 86.92631579 | L18: 0 | M18: 0 | N18: 86.92631579 | O18: 0.9255138319 | P18: 92.55138319 | Q18: 100 | R18: 3 | S18: 0 | T18: 103 | U18: 0.9537037037 | V18: 95.37037037 | W18: 91.50762386 | X18: 13
A19: 17 | B19: 2023210502 | C19: 王炫杰 | D19: 工程学硕 | E19: 95.85365854 | F19: 9.65 | G19: 0 | H19: 105.5036585 | I19: 0.9311617861 | J19: 93.11617861 | K19: 84.77368421 | L19: 0 | M19: 0 | N19: 84.77368421 | O19: 0.902594532 | P19: 90.2594532 | Q19: 100 | R19: 3.6 | S19: 0 | T19: 103.6 | U19: 0.9592592593 | V19: 95.92592593 | W19: 91.39744556 | X19: 14
A20: 18 | B20: 2023210504 | C20: 玄德军 | D20: 工程学硕 | E20: 95.7 | F20: 6 | G20: 0 | H20: 101.7 | I20: 0.8975911827 | J20: 89.75911827 | K20: 85.72631579 | L20: 0 | M20: 0 | N20: 85.72631579 | O20: 0.9127373029 | P20: 91.27373029 | Q20: 100 | R20: 1.6 | S20: 0 | T20: 101.6 | U20: 0.9407407407 | V20: 94.07407407 | W20: 91.25084226 | X20: 15
A21: 19 | B21: 2023210516 | C21: 郑紫雨 | D21: 工程学硕 | E21: 96.48536585 | F21: 8.1 | G21: 0 | H21: 104.5853659 | I21: 0.9230570524 | J21: 92.30570524 | K21: 84.68823529 | L21: 0 | M21: 0 | N21: 84.68823529 | O21: 0.9016847482 | P21: 90.16847482 | Q21: 100 | R21: 0 | S21: 0 | T21: 100 | U21: 0.9259259259 | V21: 92.59259259 | W21: 90.83833268 | X21: 16
A22: 20 | B22: 2023210544 | C22: 吕国欣 | D22: 工程学硕 | E22: 96.00731707 | F22: 0 | G22: 0 | H22: 96.00731707 | I22: 0.8473482919 | J22: 84.73482919 | K22: 86.51111111 | L22: 0 | M22: 0 | N22: 86.51111111 | O22: 0.921093103 | P22: 92.1093103 | Q22: 100 | R22: 0 | S22: 0 | T22: 100 | U22: 0.9259259259 | V22: 92.59259259 | W22: 90.68274231 | X22: 17
A23: 21 | B23: 2023210604 | C23: 刘泽浩 | D23: 工程学硕 | E23: 96.05853659 | F23: 3.25 | G23: 0 | H23: 99.30853659 | I23: 0.8764844327 | J23: 87.64844327 | K23: 85.06666667 | L23: 0 | M23: 0 | N23: 85.06666667 | O23: 0.9057139477 | P23: 90.57139477 | Q23: 100 | R23: 0 | S23: 0 | T23: 100 | U23: 0.9259259259 | V23: 92.59259259 | W23: 90.18892425 | X23: 18
A24: 22 | B24: 2023210501 | C24: 彭梦甜 | D24: 工程学硕 | E24: 96.2804878 | F24: 6.15 | G24: 0 | H24: 102.4304878 | I24: 0.9040383746 | J24: 90.40383746 | K24: 84.12631579 | L24: 0 | M24: 0 | N24: 84.12631579 | O24: 0.8957019308 | P24: 89.57019308 | Q24: 100 | R24: 1.6 | S24: 0 | T24: 101.6 | U24: 0.9407407407 | V24: 94.07407407 | W24: 90.18731005 | X24: 19
A25: 23 | B25: 2023210552 | C25: 吴兆龙 | D25: 工程学硕 | E25: 96.16097561 | F25: 4.25 | G25: 0 | H25: 100.4109756 | I25: 0.8862144185 | J25: 88.62144185 | K25: 84.575 | L25: 0 | M25: 0 | N25: 84.575 | O25: 0.9004791198 | P25: 90.04791198 | Q25: 100 | R25: 0 | S25: 0 | T25: 100 | U25: 0.9259259259 | V25: 92.59259259 | W25: 90.01708602 | X25: 20
A26: 24 | B26: 2023210621 | C26: 孙利萌 | D26: 工程学硕 | E26: 95.92195122 | F26: 1 | G26: 0 | H26: 96.92195122 | I26: 0.8554207358 | J26: 85.54207358 | K26: 85.295 | L26: 0 | M26: 0 | N26: 85.295 | O26: 0.9081450373 | P26: 90.81450373 | Q26: 100 | R26: 0 | S26: 0 | T26: 100 | U26: 0.9259259259 | V26: 92.59259259 | W26: 89.93782659 | X26: 21
A27: 25 | B27: 2023210579 | C27: 包立永 | D27: 工程学硕 | E27: 95.85365854 | F27: 1 | G27: 0 | H27: 96.85365854 | I27: 0.8548179933 | J27: 85.48179933 | K27: 84.84 | L27: 0.375 | M27: 0 | N27: 85.215 | O27: 0.9072932687 | P27: 90.72932687 | Q27: 100 | R27: 0 | S27: 0 | T27: 100 | U27: 0.9259259259 | V27: 92.59259259 | W27: 89.86614793 | X27: 22
A28: 26 | B28: 2023210572 | C28: 王梦博 | D28: 工程学硕 | E28: 95.75121951 | F28: 0.75 | G28: 0 | H28: 96.50121951 | I28: 0.8517074116 | J28: 85.17074116 | K28: 84.56176471 | L28: 0.375 | M28: 0 | N28: 84.93676471 | O28: 0.9043308676 | P28: 90.43308676 | Q28: 100 | R28: 1.333333333 | S28: 0 | T28: 101.3333333 | U28: 0.9382716049 | V28: 93.82716049 | W28: 89.72002501 | X28: 23
A29: 27 | B29: 2023210620 | C29: 苏雪妮 | D29: 工程学硕 | E29: 96.17804878 | F29: 1.5 | G29: 0 | H29: 97.67804878 | I29: 0.8620939561 | J29: 86.20939561 | K29: 84.565 | L29: 0 | M29: 0 | N29: 84.565 | O29: 0.9003726488 | P29: 90.03726488 | Q29: 100 | R29: 0 | S29: 0 | T29: 100 | U29: 0.9259259259 | V29: 92.59259259 | W29: 89.5272238 | X29: 24
A30: 28 | B30: 2023210546 | C30: 朱家文川 | D30: 工程学硕 | E30: 95.90487805 | F30: 0 | G30: 0 | H30: 95.90487805 | I30: 0.8464441782 | J30: 84.64441782 | K30: 84.77777778 | L30: 0 | M30: 0 | N30: 84.77777778 | O30: 0.9026381166 | P30: 90.26381166 | Q30: 100 | R30: 0 | S30: 0 | T30: 100 | U30: 0.9259259259 | V30: 92.59259259 | W30: 89.37281099 | X30: 25
A31: 29 | B31: 2023210590 | C31: 亓美霞 | D31: 工程学硕 | E31: 95.87073171 | F31: 4.75 | G31: 0 | H31: 100.6207317 | I31: 0.8880656989 | J31: 88.80656989 | K31: 83.44736842 | L31: 0 | M31: 0 | N31: 83.44736842 | O31: 0.8884731052 | P31: 88.84731052 | Q31: 100 | R31: 0 | S31: 0 | T31: 100 | U31: 0.9259259259 | V31: 92.59259259 | W31: 89.2136906 | X31: 26
A32: 30 | B32: 2023210608 | C32: 贾子葶 | D32: 工程学硕 | E32: 95.75121951 | F32: 0 | G32: 0 | H32: 95.75121951 | I32: 0.8450880076 | J32: 84.50880076 | K32: 81.44583333 | L32: 3 | M32: 0 | N32: 84.44583333 | O32: 0.8991038684 | P32: 89.91038684 | Q32: 100 | R32: 0 | S32: 0 | T32: 100 | U32: 0.9259259259 | V32: 92.59259259 | W32: 89.0982902 | X32: 27
A33: 31 | B33: 2023210588 | C33: 翟梦琪 | D33: 工程学硕 | E33: 95.85365854 | F33: 4.5 | G33: 0 | H33: 100.3536585 | I33: 0.8857085453 | J33: 88.57085453 | K33: 83.32222222 | L33: 0 | M33: 0 | N33: 83.32222222 | O33: 0.8871406601 | P33: 88.71406601 | Q33: 100 | R33: 0 | S33: 0 | T33: 100 | U33: 0.9259259259 | V33: 92.59259259 | W33: 89.07327637 | X33: 28
A34: 32 | B34: 2023210549 | C34: 于洪懿 | D34: 工程学硕 | E34: 95.78536585 | F34: 4 | G34: 0 | H34: 99.78536585 | I34: 0.8806928668 | J34: 88.06928668 | K34: 83.40625 | L34: 0 | M34: 0 | N34: 83.40625 | O34: 0.8880353129 | P34: 88.80353129 | Q34: 100 | R34: 0 | S34: 0 | T34: 100 | U34: 0.9259259259 | V34: 92.59259259 | W34: 89.0355885 | X34: 29
A35: 33 | B35: 2023210568 | C35: 尚文波 | D35: 工程学硕 | E35: 95.88780488 | F35: 10.5 | G35: 0 | H35: 106.3878049 | I35: 0.9389651486 | J35: 93.89651486 | K35: 81.23235294 | L35: 0.375 | M35: 0 | N35: 81.60735294 | O35: 0.8688822625 | P35: 86.88822625 | Q35: 100 | R35: 0 | S35: 0 | T35: 100 | U35: 0.9259259259 | V35: 92.59259259 | W35: 88.86032061 | X35: 30
A36: 34 | B36: 2023210571 | C36: 刘晓慧 | D36: 工程学硕 | E36: 95.92195122 | F36: 3.5 | G36: 0 | H36: 99.42195122 | I36: 0.8774854158 | J36: 87.74854158 | K36: 83.25588235 | L36: 0 | M36: 0 | N36: 83.25588235 | O36: 0.8864343324 | P36: 88.64343324 | Q36: 100 | R36: 0 | S36: 0 | T36: 100 | U36: 0.9259259259 | V36: 92.59259259 | W36: 88.85937084 | X36: 31
A37: 35 | B37: 2023210589 | C37: 唐集文 | D37: 工程学硕 | E37: 95.75121951 | F37: 2 | G37: 0 | H37: 97.75121951 | I37: 0.8627397516 | J37: 86.27397516 | K37: 83.45294118 | L37: 0 | M37: 0 | N37: 83.45294118 | O37: 0.8885324389 | P37: 88.85324389 | Q37: 100 | R37: 0 | S37: 0 | T37: 100 | U37: 0.9259259259 | V37: 92.59259259 | W37: 88.71132501 | X37: 32
A38: 36 | B38: 2023210515 | C38: 李乐妍 | D38: 工程学硕 | E38: 96.29756098 | F38: 1.5 | G38: 0 | H38: 97.79756098 | I38: 0.8631487554 | J38: 86.31487554 | K38: 82.29411765 | L38: 0.555555556 | M38: 0 | N38: 82.8496732 | O38: 0.8821093799 | P38: 88.21093799 | Q38: 100 | R38: 1.333333333 | S38: 0 | T38: 101.3333333 | U38: 0.9382716049 | V38: 93.82716049 | W38: 88.39334775 | X38: 33
A39: 37 | B39: 2023210514 | C39: 向煜昊 | D39: 工程学硕 | E39: 96.12682927 | F39: 0.75 | G39: 0 | H39: 96.87682927 | I39: 0.8550224952 | J39: 85.50224952 | K39: 82.23125 | L39: 0 | M39: 0 | N39: 82.23125 | O39: 0.8755249616 | P39: 87.55249616 | Q39: 100 | R39: 0 | S39: 0 | T39: 100 | U39: 0.9259259259 | V39: 92.59259259 | W39: 87.64645647 | X39: 34
A40: 38 | B40: 2023210503 | C40: 韩政 | D40: 工程学硕 | E40: 95.59756098 | F40: 1 | G40: 0 | H40: 96.59756098 | I40: 0.852557709 | J40: 85.2557709 | K40: 81.94736842 | L40: 0 | M40: 0 | N40: 81.94736842 | O40: 0.8725024439 | P40: 87.25024439 | Q40: 100 | R40: 1.333333333 | S40: 0 | T40: 101.3333333 | U40: 0.9382716049 | V40: 93.82716049 | W40: 87.5090413 | X40: 35
A41: 39 | B41: 2023210603 | C41: 李春辉 | D41: 工程学硕 | E41: 95.97317073 | F41: 1 | G41: 0 | H41: 96.97317073 | I41: 0.8558727926 | J41: 85.58727926 | K41: 81.82777778 | L41: 0 | M41: 0 | N41: 81.82777778 | O41: 0.8712291494 | P41: 87.12291494 | Q41: 100 | R41: 0 | S41: 0 | T41: 100 | U41: 0.9259259259 | V41: 92.59259259 | W41: 87.36275557 | X41: 36
A42: 40 | B42: 2023210565 | C42: 李思阳 | D42: 工程学硕 | E42: 96.12682927 | F42: 0.5 | G42: 0 | H42: 96.62682927 | I42: 0.8528160272 | J42: 85.28160272 | K42: 81.77894737 | L42: 0 | M42: 0 | N42: 81.77894737 | O42: 0.8707092468 | P42: 87.07092468 | Q42: 100 | R42: 0 | S42: 0 | T42: 100 | U42: 0.9259259259 | V42: 92.59259259 | W42: 87.26522708 | X42: 37
A43: 41 | B43: 2023210566 | C43: 王宏帅 | D43: 工程学硕 | E43: 96.09268293 | F43: 1 | G43: 0 | H43: 97.09268293 | I43: 0.856927592 | J43: 85.6927592 | K43: 81.62941176 | L43: 0 | M43: 0 | N43: 81.62941176 | O43: 0.8691171251 | P43: 86.91171251 | Q43: 100 | R43: 0 | S43: 0 | T43: 100 | U43: 0.9259259259 | V43: 92.59259259 | W43: 87.23600986 | X43: 38
A44: 42 | B44: 2023210511 | C44: 钟梓晋 | D44: 工程学硕 | E44: 95.90487805 | F44: 5.1 | G44: 0 | H44: 101.004878 | I44: 0.8914561254 | J44: 89.14561254 | K44: 80.25789474 | L44: 0 | M44: 0 | N44: 80.25789474 | O44: 0.8545144359 | P44: 85.45144359 | Q44: 100 | R44: 1.6 | S44: 0 | T44: 101.6 | U44: 0.9407407407 | V44: 94.07407407 | W44: 87.05254043 | X44: 39
A45: 43 | B45: 2023210548 | C45: 耿心怡 | D45: 工程学硕 | E45: 95.90487805 | F45: 1.5 | G45: 0 | H45: 97.40487805 | I45: 0.8596829862 | J45: 85.96829862 | K45: 79.23 | L45: 0 | M45: 0 | N45: 79.23 | O45: 0.8435703301 | P45: 84.35703301 | Q45: 100 | R45: 0 | S45: 0 | T45: 100 | U45: 0.9259259259 | V45: 92.59259259 | W45: 85.50284209 | X45: 40
A46: 44 | B46: 2023210581 | C46: 杨佳佳 | D46: 工程学硕 | E46: 96.07560976 | F46: 0 | G46: 0 | H46: 96.07560976 | I46: 0.8479510343 | J46: 84.79510343 | K46: 75.92941176 | L46: 0 | M46: 0 | N46: 75.92941176 | O46: 0.8084286122 | P46: 80.84286122 | Q46: 100 | R46: 0 | S46: 0 | T46: 100 | U46: 0.9259259259 | V46: 92.59259259 | W46: 82.8082828 | X46: 41
A47: 45 | B47: 2023210536 | C47: 臧蒙恩 | D47: 工程学硕 | E47: 95.66585366 | F47: 0 | G47: 0 | H47: 95.66585366 | I47: 0.8443345795 | J47: 84.43345795 | K47: 74.47 | L47: 0 | M47: 0 | N47: 74.47 | O47: 0.7928900982 | P47: 79.28900982 | Q47: 100 | R47: 8 | S47: 0 | T47: 108 | U47: 1 | V47: 100 | W47: 82.38899846 | X47: 42

Sheet 工程专硕
A1: 序号 | B1: 学号 | C1: 姓名 | D1: 方向 | E1: 德育部分 | K1: 智育部分 | Q1: 文体部分 | W1: 总分 | X1: 排名
E2: 基础分 | F2: 奖励分 | G2: 惩罚分 | H2: 个人德育总分 | I2: 个人德育总分/基准 | J2: 德育总成绩 | K2: 基础分 | L2: 奖励分 | M2: 惩罚分 | N2: 个人智育总分 | O2: 个人智育总分/基准 | P2: 智育总成绩 | Q2: 基础分 | R2: 奖励分 | S2: 惩罚分 | T2: 个人文体总分 | U2: 个人文体总分/基准 | V2: 文体总成绩
A3: 1 | B3: 2023215334 | C3: 彭超强 | D3: 工程专硕 | E3: 97.8 | F3: 5 | G3: 0 | H3: 102.8 | I3: =H3/105.3 -> 0.9762583096 | J3: =100*I3 -> 97.62583096 | K3: 84.00125 | L3: 0 | M3: 0 | N3: 84.00125 | O3: =N3/85.1862745098039 -> 0.9860890206 | P3: =100*O3 -> 98.60890206 | Q3: 100 | R3: 5.333333333 | S3: 0 | T3: 105.3333333 | U3: =T3/105.333333333 -> 1 | V3: =100*U3 -> 100 | W3: =J3*0.2+P3*0.7+V3*0.1 -> 98.55139763 | X3: 1
A4: 2 | B4: 2023215362 | C4: 程森 | D4: 工程专硕 | E4: 97.8 | F4: 0 | G4: 0 | H4: 97.8 | I4: =H4/105.3 -> 0.9287749288 | J4: =100*I4 -> 92.87749288 | K4: 85.18627451 | L4: 0 | M4: 0 | N4: 85.18627451 | O4: =N4/85.1862745098039 -> 1 | P4: =100*O4 -> 100 | Q4: 100 | R4: 0 | S4: 0 | T4: 100 | U4: =T4/105.333333333 -> 0.9493670886 | V4: =100*U4 -> 94.93670886 | W4: =J4*0.2+P4*0.7+V4*0.1 -> 98.06916946 | X4: 2
A5: 3 | B5: 2023215303 | C5: 唐常平 | D5: 工程专硕 | E5: 97.8 | F5: 5.25 | G5: 0 | H5: 103.05 | I5: 0.9786324786 | J5: 97.86324786 | K5: 83.42631579 | L5: 0 | M5: 0 | N5: 83.42631579 | O5: 0.9793398792 | P5: 97.93398792 | Q5: 100 | R5: 0 | S5: 0 | T5: 100 | U5: 0.9493670886 | V5: 94.93670886 | W5: 97.620112 | X5: 3
A6: 4 | B6: 2023215301 | C6: 郭佩琦 | D6: 工程专硕 | E6: 97.8 | F6: 0 | G6: 0 | H6: 97.8 | I6: 0.9287749288 | J6: 92.87749288 | K6: 84.47205882 | L6: 0 | M6: 0 | N6: 84.47205882 | O6: 0.9916158361 | P6: 99.16158361 | Q6: 100 | R6: 0 | S6: 0 | T6: 100 | U6: 0.9493670886 | V6: 94.93670886 | W6: 97.48227799 | X6: 4
A7: 5 | B7: 2023215333 | C7: 侯艳伟 | D7: 工程专硕 | E7: 97.8 | F7: 2.5 | G7: 0 | H7: 100.3 | I7: 0.9525166192 | J7: 95.25166192 | K7: 83.73294118 | L7: 0 | M7: 0 | N7: 83.73294118 | O7: 0.9829393486 | P7: 98.29393486 | Q7: 100 | R7: 0 | S7: 0 | T7: 100 | U7: 0.9493670886 | V7: 94.93670886 | W7: 97.34975767 | X7: 5
A8: 6 | B8: 2023215327 | C8: 王莹 | D8: 工程专硕 | E8: 97.8 | F8: 1.5 | G8: 0 | H8: 99.3 | I8: 0.943019943 | J8: 94.3019943 | K8: 83.45 | L8: 0 | M8: 0 | N8: 83.45 | O8: 0.9796179077 | P8: 97.96179077 | Q8: 100 | R8: 0 | S8: 0 | T8: 100 | U8: 0.9493670886 | V8: 94.93670886 | W8: 96.92732329 | X8: 6
A9: 7 | B9: 2023215351 | C9: 陈华东 | D9: 工程专硕 | E9: 97.8 | F9: 3 | G9: 0 | H9: 100.8 | I9: 0.9572649573 | J9: 95.72649573 | K9: 81.90526316 | L9: 0 | M9: 0 | N9: 81.90526316 | O9: 0.9614842723 | P9: 96.14842723 | Q9: 100 | R9: 5.333333333 | S9: 0 | T9: 105.3333333 | U9: 1 | V9: 100 | W9: 96.44919821 | X9: 7
A10: 8 | B10: 2023215304 | C10: 张瑞宁 | D10: 工程专硕 | E10: 97.8 | F10: 0.5 | G10: 0 | H10: 98.3 | I10: 0.9335232669 | J10: 93.35232669 | K10: 83.05263158 | L10: 0 | M10: 0 | N10: 83.05263158 | O10: 0.9749532076 | P10: 97.49532076 | Q10: 100 | R10: 0 | S10: 0 | T10: 100 | U10: 0.9493670886 | V10: 94.93670886 | W10: 96.41086076 | X10: 8
A11: 9 | B11: 2023215322 | C11: 张子贤 | D11: 工程专硕 | E11: 97.8 | F11: 4.25 | G11: 0 | H11: 102.05 | I11: 0.9691358025 | J11: 96.91358025 | K11: 81.69705882 | L11: 0 | M11: 0 | N11: 81.69705882 | O11: 0.9590401657 | P11: 95.90401657 | Q11: 100 | R11: 0 | S11: 0 | T11: 100 | U11: 0.9493670886 | V11: 94.93670886 | W11: 96.00919854 | X11: 9
A12: 10 | B12: 2023215321 | C12: 樊王臣 | D12: 工程专硕 | E12: 97.8 | F12: 0.5 | G12: 0 | H12: 98.3 | I12: 0.9335232669 | J12: 93.35232669 | K12: 82.18823529 | L12: 0 | M12: 0 | N12: 82.18823529 | O12: 0.9648060766 | P12: 96.48060766 | Q12: 100 | R12: 0 | S12: 0 | T12: 100 | U12: 0.9493670886 | V12: 94.93670886 | W12: 95.70056159 | X12: 10
A13: 11 | B13: 2023215311 | C13: 方海艳 | D13: 工程专硕 | E13: 97.8 | F13: 0 | G13: 0 | H13: 97.8 | I13: 0.9287749288 | J13: 92.87749288 | K13: 81.39411765 | L13: 0 | M13: 0 | N13: 81.39411765 | O13: 0.9554839452 | P13: 95.54839452 | Q13: 100 | R13: 0 | S13: 0 | T13: 100 | U13: 0.9493670886 | V13: 94.93670886 | W13: 94.95304563 | X13: 11
A14: 12 | B14: 2023215355 | C14: 孙培杰 | D14: 工程专硕 | E14: 97.8 | F14: 0 | G14: 0 | H14: 97.8 | I14: 0.9287749288 | J14: 92.87749288 | K14: 80.94375 | L14: 0 | M14: 0 | N14: 80.94375 | O14: 0.9501970883 | P14: 95.01970883 | Q14: 100 | R14: 0 | S14: 0 | T14: 100 | U14: 0.9493670886 | V14: 94.93670886 | W14: 94.58296564 | X14: 12
A15: 13 | B15: 2023215328 | C15: 吴世健 | D15: 工程专硕 | E15: 97.8 | F15: 0 | G15: 0 | H15: 97.8 | I15: 0.9287749288 | J15: 92.87749288 | K15: 80.56 | L15: 0 | M15: 0 | N15: 80.56 | O15: 0.9456922546 | P15: 94.56922546 | Q15: 100 | R15: 0 | S15: 0 | T15: 100 | U15: 0.9493670886 | V15: 94.93670886 | W15: 94.26762728 | X15: 13
A16: 14 | B16: 2023215312 | C16: 张钊宁 | D16: 工程专硕 | E16: 97.8 | F16: 0.5 | G16: 0 | H16: 98.3 | I16: 0.9335232669 | J16: 93.35232669 | K16: 80.18823529 | L16: 0 | M16: 0 | N16: 80.18823529 | O16: 0.941328116 | P16: 94.1328116 | Q16: 100 | R16: 0 | S16: 0 | T16: 100 | U16: 0.9493670886 | V16: 94.93670886 | W16: 94.05710434 | X16: 14
A17: 15 | B17: 2023215335 | C17: 朱紫橙 | D17: 工程专硕 | E17: 97.8 | F17: 7.5 | G17: 0 | H17: 105.3 | I17: =H17/105.3 -> 1 | J17: 100 | K17: 78.08705882 | L17: 0 | M17: 0 | N17: 78.08705882 | O17: 0.9166624468 | P17: 91.66624468 | Q17: 100 | R17: 0 | S17: 0 | T17: 100 | U17: 0.9493670886 | V17: 94.93670886 | W17: 93.66004216 | X17: 15
A18: 16 | B18: 2023215339 | C18: 范晓旭 | D18: 工程专硕 | E18: 97.8 | F18: 0 | G18: 0 | H18: 97.8 | I18: 0.9287749288 | J18: 92.87749288 | K18: 79.76666667 | L18: 0 | M18: 0 | N18: 79.76666667 | O18: 0.9363793302 | P18: 93.63793302 | Q18: 100 | R18: 0 | S18: 0 | T18: 100 | U18: 0.9493670886 | V18: 94.93670886 | W18: 93.61572257 | X18: 16
A19: 17 | B19: 2023215385 | C19: 战沚榕 | D19: 工程专硕 | E19: 97.8 | F19: 4 | G19: 0 | H19: 101.8 | I19: 0.9667616334 | J19: 96.67616334 | K19: 78.68487395 | L19: 0 | M19: 0 | N19: 78.68487395 | O19: 0.9236801868 | P19: 92.36801868 | Q19: 100 | R19: 0 | S19: 0 | T19: 100 | U19: 0.9493670886 | V19: 94.93670886 | W19: 93.48651663 | X19: 17
A20: 18 | B20: 2023215352 | C20: 杨博旭 | D20: 工程专硕 | E20: 97.8 | F20: 0 | G20: 0 | H20: 97.8 | I20: 0.9287749288 | J20: 92.87749288 | K20: 78.93684211 | L20: 0 | M20: 0 | N20: 78.93684211 | O20: 0.926638036 | P20: 92.6638036 | Q20: 100 | R20: 5.333333333 | S20: 0 | T20: 105.3333333 | U20: 1 | V20: 100 | W20: 93.44016109 | X20: 18
A21: 19 | B21: 2023215302 | C21: 尹泽坤 | D21: 工程专硕 | E21: 97.8 | F21: 1 | G21: 0 | H21: 98.8 | I21: 0.9382716049 | J21: 93.82716049 | K21: 78.62647059 | L21: 0 | M21: 0 | N21: 78.62647059 | O21: 0.9229945909 | P21: 92.29945909 | Q21: 100 | R21: 0 | S21: 0 | T21: 100 | U21: 0.9493670886 | V21: 94.93670886 | W21: 92.86872435 | X21: 19
A22: 20 | B22: 2023215354 | C22: 甘杨 | D22: 工程专硕 | E22: 97.8 | F22: 0 | G22: 0 | H22: 97.8 | I22: 0.9287749288 | J22: 92.87749288 | K22: 78.08382353 | L22: 0 | M22: 0 | N22: 78.08382353 | O22: 0.9166244677 | P22: 91.66244677 | Q22: 100 | R22: 0 | S22: 0 | T22: 100 | U22: 0.9493670886 | V22: 94.93670886 | W22: 92.2328822 | X22: 20
A23: 21 | B23: 2023215310 | C23: 邢鹏飞 | D23: 工程专硕 | E23: 97.8 | F23: 3 | G23: 0 | H23: 100.8 | I23: 0.9572649573 | J23: 95.72649573 | K23: 77.34605263 | L23: 0 | M23: 0 | N23: 77.34605263 | O23: 0.9079637897 | P23: 90.79637897 | Q23: 100 | R23: 0 | S23: 0 | T23: 100 | U23: 0.9493670886 | V23: 94.93670886 | W23: 92.19643531 | X23: 21
A24: 22 | B24: 2023215338 | C24: 张晓宇 | D24: 工程专硕 | E24: 97.8 | F24: 0 | G24: 0 | H24: 97.8 | I24: 0.9287749288 | J24: 92.87749288 | K24: 77.73970588 | L24: 0 | M24: 0 | N24: 77.73970588 | O24: 0.9125848774 | P24: 91.25848774 | Q24: 100 | R24: 0 | S24: 0 | T24: 100 | U24: 0.9493670886 | V24: 94.93670886 | W24: 91.95011088 | X24: 22
A25: 23 | B25: 2023215309 | C25: 田学伏 | D25: 工程专硕 | E25: 97.8 | F25: 2 | G25: 0 | H25: 99.8 | I25: 0.9477682811 | J25: 94.77682811 | K25: 76.82368421 | L25: 0 | M25: 0 | N25: 76.82368421 | O25: 0.9018317171 | P25: 90.18317171 | Q25: 100 | R25: 0 | S25: 0 | T25: 100 | U25: 0.9493670886 | V25: 94.93670886 | W25: 91.5772567 | X25: 23
A26: 24 | B26: 2023215326 | C26: 付前程 | D26: 工程专硕 | E26: 97.8 | F26: 0 | G26: 0 | H26: 97.8 | I26: 0.9287749288 | J26: 92.87749288 | K26: 77.115 | L26: 0 | M26: 0 | N26: 77.115 | O26: 0.9052514674 | P26: 90.52514674 | Q26: 100 | R26: 0 | S26: 0 | T26: 100 | U26: 0.9493670886 | V26: 94.93670886 | W26: 91.43677218 | X26: 24
A27: 25 | B27: 2023215384 | C27: 彭旭栋 | D27: 工程专硕 | E27: 97.8 | F27: 0 | G27: 0 | H27: 97.8 | I27: 0.9287749288 | J27: 92.87749288 | K27: 76.05462185 | L27: 0 | M27: 0 | N27: 76.05462185 | O27: 0.8928037091 | P27: 89.28037091 | Q27: 100 | R27: 0 | S27: 0 | T27: 100 | U27: 0.9493670886 | V27: 94.93670886 | W27: 90.5654291 | X27: 25
A28: 26 | B28: 2023215353 | C28: 蔡高龙 | D28: 工程专硕 | E28: 97.8 | F28: 0.5 | G28: 0 | H28: 98.3 | I28: 0.9335232669 | J28: 93.35232669 | K28: 70.92631579 | L28: 0 | M28: 0 | N28: 70.92631579 | O28: 0.8326026252 | P28: 83.26026252 | Q28: 100 | R28: 3.333333333 | S28: 0 | T28: 103.3333333 | U28: 0.9810126582 | V28: 98.10126582 | W28: 86.76277568 | X28: 26
A29: 27 | B29: 2023215373 | C29: 邵婷婷 | D29: 工程专硕 | E29: 97.8 | F29: 4.5 | G29: 30 | H29: 72.3 | I29: 0.6866096866 | J29: 68.66096866 | K29: 67.62875001 | L29: 0 | M29: 0 | N29: 67.62875001 | O29: 0.7938925655 | P29: 79.38925655 | Q29: 100 | R29: 0 | S29: 0 | T29: 100 | U29: 0.9493670886 | V29: 94.93670886 | W29: 78.7983442 | X29: 27

Sheet 催化学硕
A1: 序号 | B1: 学号 | C1: 姓名 | D1: 方向 | E1: 德育成绩 | K1: 智育成绩 | Q1: 文体成绩 | W1: 总分 | X1: 排名 | Y1: 备注
E2: 基础分 | F2: 奖励分 | G2: 惩罚分 | H2: 个人德育总分 | I2: 个人德育总分/基准 | J2: 德育总成绩 | K2: 基础分 | L2: 奖励分 | M2: 惩罚分 | N2: 个人智育总分 | O2: 个人智育总分/基准 | P2: 智育总成绩 | Q2: 基本分 | R2: 奖励分 | S2: 惩罚分 | T2: 个人文体总分 | U2: 个人文体总分/基准 | V2: 文体总成绩
A3: 1 | B3: 2023210585 | C3: 马雯 | D3: — | E3: — | F3: — | G3: — | H3: — | I3: — | J3: — | K3: — | L3: — | M3: — | N3: — | O3: — | P3: — | Q3: — | R3: — | S3: — | T3: — | U3: — | V3: — | W3: — | X3: — | Y3: 辅导员
A4: 2 | B4: 2022210615 | C4: 金玮 | D4: — | E4: — | F4: — | G4: — | H4: — | I4: — | J4: — | K4: — | L4: — | M4: — | N4: — | O4: — | P4: — | Q4: — | R4: — | S4: — | T4: — | U4: — | V4: — | W4: — | X4: — | Y4: 辅导员
A5: 3 | B5: 2023210507 | C5: 陶欣 | D5: 催化学硕 | E5: 97.61333333 | F5: 2.5 | G5: 0 | H5: 100.1133333 | I5: =H5/110.813333333333 -> 0.9034412225 | J5: =100*I5 -> 90.34412225 | K5: 89.27 | L5: 0 | M5: 0 | N5: 89.27 | O5: 1 | P5: 100 | Q5: 100 | R5: 0 | S5: 0 | T5: 100 | U5: =T5/108 -> 0.9259259259 | V5: =100*U5 -> 92.59259259 | W5: =J5*0.2+P5*0.7+V5*0.1 -> 97.32808371 | X5: 1
A6: 4 | B6: 2023210508 | C6: 王卓雅 | D6: 催化学硕 | E6: 97.54333333 | F6: 10.8 | G6: 0 | H6: 108.3433333 | I6: =H6/110.813333333333 -> 0.9777102635 | J6: =100*I6 -> 97.77102635 | K6: 86.28705882 | L6: 0 | M6: 0 | N6: 86.28705882 | O6: =N6/89.27 -> 0.9665851778 | P6: =100*O6 -> 96.65851778 | Q6: 100 | R6: 1.333333333 | S6: 0 | T6: 101.3333333 | U6: =T6/108 -> 0.9382716049 | V6: =100*U6 -> 93.82716049 | W6: =J6*0.2+P6*0.7+V6*0.1 -> 96.59788377 | X6: 2
A7: 5 | B7: 2023210509 | C7: 杨振南 | D7: 催化学硕 | E7: 97.52 | F7: 7 | G7: 0 | H7: 104.52 | I7: 0.9432077969 | J7: 94.32077969 | K7: 84.74705882 | L7: 0 | M7: 0 | N7: 84.74705882 | O7: =N7/89.27 -> 0.9493341416 | P7: =100*O7 -> 94.93341416 | Q7: 100 | R7: 1.333333333 | S7: 0 | T7: 101.3333333 | U7: 0.9382716049 | V7: 93.82716049 | W7: 94.7002619 | X7: 3
A8: 6 | B8: 2023210512 | C8: 胡瑞珍 | D8: 催化学硕 | E8: 97.35666667 | F8: 9.8 | G8: 0 | H8: 107.1566667 | I8: 0.9670015642 | J8: 96.70015642 | K8: 83.12666667 | L8: 0 | M8: 0 | N8: 83.12666667 | O8: 0.9311825548 | P8: 93.11825548 | Q8: 100 | R8: 1.6 | S8: 0 | T8: 101.6 | U8: 0.9407407407 | V8: 94.07407407 | W8: 93.93021753 | X8: 4
A9: 7 | B9: 2023210517 | C9: 张雪莲 | D9: 催化学硕 | E9: 97.63666667 | F9: 8.5 | G9: 0 | H9: 106.1366667 | I9: 0.9577968957 | J9: 95.77968957 | K9: 83.04210526 | L9: 0 | M9: 0 | N9: 83.04210526 | O9: 0.9302353004 | P9: 93.02353004 | Q9: 100 | R9: 1.6 | S9: 0 | T9: 101.6 | U9: 0.9407407407 | V9: 94.07407407 | W9: 93.67981635 | X9: 5
A10: 8 | B10: 2023210518 | C10: 袁紫颖 | D10: 催化学硕 | E10: 97.59 | F10: 2 | G10: 0 | H10: 99.59 | I10: 0.8987185658 | J10: 89.87185658 | K10: 84.46941176 | L10: 0 | M10: 0 | N10: 84.46941176 | O10: 0.9462239472 | P10: 94.62239472 | Q10: 100 | R10: 1.333333333 | S10: 0 | T10: 101.3333333 | U10: 0.9382716049 | V10: 93.82716049 | W10: 93.59276367 | X10: 6
A11: 9 | B11: 2023210521 | C11: 王丹 | D11: 催化学硕 | E11: 97.59 | F11: 10.5 | G11: 0 | H11: 108.09 | I11: 0.9754241367 | J11: 97.54241367 | K11: 80.50666667 | L11: 1.875 | M11: 0 | N11: 82.38166667 | O11: 0.922837086 | P11: 92.2837086 | Q11: 100 | R11: 1.6 | S11: 0 | T11: 101.6 | U11: 0.9407407407 | V11: 94.07407407 | W11: 93.51448616 | X11: 7
A12: 10 | B12: 2023210522 | C12: 魏来 | D12: 催化学硕 | E12: 97.47333333 | F12: 10.5 | G12: 0 | H12: 107.9733333 | I12: 0.9743713151 | J12: 97.43713151 | K12: 82.58888889 | L12: 0 | M12: 0 | N12: 82.58888889 | O12: 0.9251583834 | P12: 92.51583834 | Q12: 100 | R12: 0 | S12: 0 | T12: 100 | U12: 0.9259259259 | V12: 92.59259259 | W12: 93.5077724 | X12: 8
A13: 11 | B13: 2023210528 | C13: 游瑞琦 | D13: 催化学硕 | E13: 97.49666667 | F13: 0 | G13: 0 | H13: 97.49666667 | I13: 0.8798279389 | J13: 87.98279389 | K13: 84.475 | L13: 0 | M13: 0 | N13: 84.475 | O13: 0.9462865464 | P13: 94.62865464 | Q13: 100 | R13: 1.333333333 | S13: 0 | T13: 101.3333333 | U13: 0.9382716049 | V13: 93.82716049 | W13: 93.21933308 | X13: 9
A14: 12 | B14: 2023210529 | C14: 张佳宁 | D14: 催化学硕 | E14: 97.61333333 | F14: 1.5 | G14: 0 | H14: 99.11333333 | I14: 0.8944170377 | J14: 89.44170377 | K14: 83.02875 | L14: 0 | M14: 0 | N14: 83.02875 | O14: 0.9300856951 | P14: 93.00856951 | Q14: 100 | R14: 0 | S14: 0 | T14: 100 | U14: 0.9259259259 | V14: 92.59259259 | W14: 92.25359867 | X14: 10
A15: 13 | B15: 2023210530 | C15: 宋伊辰 | D15: 催化学硕 | E15: 97.68333333 | F15: 2.25 | G15: 0 | H15: 99.93333333 | I15: 0.9018168692 | J15: 90.18168692 | K15: 79.86111111 | L15: 2.777777778 | M15: 0 | N15: 82.63888889 | O15: 0.925718482 | P15: 92.5718482 | Q15: 100 | R15: 1.333333333 | S15: 0 | T15: 101.3333333 | U15: 0.9382716049 | V15: 93.82716049 | W15: 92.21934717 | X15: 11
A16: 14 | B16: 2023210540 | C16: 秦欣妍 | D16: 催化学硕 | E16: 97.59 | F16: 0.75 | G16: 0 | H16: 98.34 | I16: 0.8874383347 | J16: 88.74383347 | K16: 82.6825 | L16: 0 | M16: 0 | N16: 82.6825 | O16: 0.9262070124 | P16: 92.62070124 | Q16: 100 | R16: 0 | S16: 0 | T16: 100 | U16: 0.9259259259 | V16: 92.59259259 | W16: 91.84251682 | X16: 12
A17: 15 | B17: 2023210541 | C17: 李超超 | D17: 催化学硕 | E17: 97.63666667 | F17: 4.15 | G17: 0 | H17: 101.7866667 | I17: 0.9185416917 | J17: 91.85416917 | K17: 81.31517857 | L17: 0 | M17: 0 | N17: 81.31517857 | O17: 0.9108903167 | P17: 91.08903167 | Q17: 100 | R17: 1.333333333 | S17: 0 | T17: 101.3333333 | U17: 0.9382716049 | V17: 93.82716049 | W17: 91.51587205 | X17: 13
A18: 16 | B18: 2023210542 | C18: 王青青 | D18: 催化学硕 | E18: 97.56666667 | F18: 3.5 | G18: 0 | H18: 101.0666667 | I18: 0.9120442787 | J18: 91.20442787 | K18: 81.31764706 | L18: 0 | M18: 0 | N18: 81.31764706 | O18: 0.9109179686 | P18: 91.09179686 | Q18: 100 | R18: 1.333333333 | S18: 0 | T18: 101.3333333 | U18: 0.9382716049 | V18: 93.82716049 | W18: 91.38785943 | X18: 14
A19: 17 | B19: 2023210543 | C19: 孙琪 | D19: 催化学硕 | E19: 97.54333333 | F19: 7.25 | G19: 0 | H19: 104.7933333 | I19: 0.9456744074 | J19: 94.56744074 | K19: 80.4375 | L19: 0 | M19: 0 | N19: 80.4375 | O19: 0.9010585863 | P19: 90.10585863 | Q19: 100 | R19: 1.333333333 | S19: 0 | T19: 101.3333333 | U19: 0.9382716049 | V19: 93.82716049 | W19: 91.37030524 | X19: 15
A20: 18 | B20: 2023210557 | C20: 李偲珠 | D20: 催化学硕 | E20: 97.63666667 | F20: 4.25 | G20: 0 | H20: 101.8866667 | I20: 0.9194441102 | J20: 91.94441102 | K20: 80.9 | L20: 0 | M20: 0 | N20: 80.9 | O20: 0.9062394982 | P20: 90.62394982 | Q20: 100 | R20: 1.333333333 | S20: 0 | T20: 101.3333333 | U20: 0.9382716049 | V20: 93.82716049 | W20: 91.20836312 | X20: 16
A21: 19 | B21: 2023210560 | C21: 温立坤 | D21: 催化学硕 | E21: 97.61333333 | F21: 13.2 | G21: 0 | H21: 110.8133333 | I21: 1 | J21: 100 | K21: 75.94444444 | L21: 2.777777778 | M21: 0 | N21: 78.72222222 | O21: 0.8818440934 | P21: 88.18440934 | Q21: 100 | R21: 1.333333333 | S21: 0 | T21: 101.3333333 | U21: 0.9382716049 | V21: 93.82716049 | W21: 91.11180259 | X21: 17
A22: 20 | B22: 2023210561 | C22: 关雪倩 | D22: 催化学硕 | E22: 97.63666667 | F22: 1 | G22: 0 | H22: 98.63666667 | I22: 0.8901155096 | J22: 89.01155096 | K22: 81.28421053 | L22: 0 | M22: 0 | N22: 81.28421053 | O22: 0.9105434135 | P22: 91.05434135 | Q22: 100 | R22: 0 | S22: 0 | T22: 100 | U22: 0.9259259259 | V22: 92.59259259 | W22: 90.7996084 | X22: 18
A23: 21 | B23: 2023210586 | C23: 文博 | D23: 催化学硕 | E23: 97.61333333 | F23: 0 | G23: 0 | H23: 97.61333333 | I23: 0.8808807604 | J23: 88.08807604 | K23: 81.29333333 | L23: 0 | M23: 0 | N23: 81.29333333 | O23: 0.910645607 | P23: 91.0645607 | Q23: 100 | R23: 0 | S23: 0 | T23: 100 | U23: 0.9259259259 | V23: 92.59259259 | W23: 90.62206696 | X23: 19
A24: 22 | B24: 2023210587 | C24: 宋骥寰 | D24: 催化学硕 | E24: 97.56666667 | F24: 1.5 | G24: 0 | H24: 99.06666667 | I24: 0.893995909 | J24: 89.3995909 | K24: 78.42333333 | L24: 1.875 | M24: 0 | N24: 80.29833333 | O24: 0.8994996453 | P24: 89.94996453 | Q24: 100 | R24: 0 | S24: 0 | T24: 100 | U24: 0.9259259259 | V24: 92.59259259 | W24: 90.10415261 | X24: 20
A25: 23 | B25: 2023210591 | C25: 吴桐雨 | D25: 催化学硕 | E25: 97.52 | F25: 9.65 | G25: 0 | H25: 107.17 | I25: 0.9671218867 | J25: 96.71218867 | K25: 78.38888889 | L25: 0 | M25: 0 | N25: 78.38888889 | O25: 0.8781101029 | P25: 87.81101029 | Q25: 100 | R25: 0 | S25: 0 | T25: 100 | U25: 0.9259259259 | V25: 92.59259259 | W25: 90.0694042 | X25: 21
A26: 24 | B26: 2023210601 | C26: 边宇 | D26: 催化学硕 | E26: 97.47333333 | F26: 0 | G26: 0 | H26: 97.47333333 | I26: 0.8796173746 | J26: 87.96173746 | K26: 80.27555556 | L26: 0 | M26: 0 | N26: 80.27555556 | O26: 0.8992444893 | P26: 89.92444893 | Q26: 100 | R26: 0 | S26: 0 | T26: 100 | U26: 0.9259259259 | V26: 92.59259259 | W26: 89.798721 | X26: 22
A27: 25 | B27: 2023210602 | C27: 郭萧菡 | D27: 催化学硕 | E27: 97.56666667 | F27: 5.5 | G27: 0 | H27: 103.0666667 | I27: 0.9300926483 | J27: 93.00926483 | K27: 78.64375 | L27: 0 | M27: 0 | N27: 78.64375 | O27: 0.8809650498 | P27: 88.09650498 | Q27: 100 | R27: 0 | S27: 0 | T27: 100 | U27: 0.9259259259 | V27: 92.59259259 | W27: 89.52866571 | X27: 23
A28: 26 | B28: 2023210605 | C28: 姜雯雯 | D28: 催化学硕 | E28: 97.54333333 | F28: 1.5 | G28: 0 | H28: 99.04333333 | I28: 0.8937853447 | J28: 89.37853447 | K28: 79.1175 | L28: 0 | M28: 0 | N28: 79.1175 | O28: 0.8862719839 | P28: 88.62719839 | Q28: 100 | R28: 0 | S28: 0 | T28: 100 | U28: 0.9259259259 | V28: 92.59259259 | W28: 89.17400502 | X28: 24
A29: 27 | B29: 2023210606 | C29: 王虹达 | D29: 催化学硕 | E29: 97.56666667 | F29: 0.75 | G29: 0 | H29: 98.31666667 | I29: 0.8872277704 | J29: 88.72277704 | K29: 78.18125 | L29: 0 | M29: 0 | N29: 78.18125 | O29: 0.875784138 | P29: 87.5784138 | Q29: 100 | R29: 0 | S29: 0 | T29: 100 | U29: 0.9259259259 | V29: 92.59259259 | W29: 88.30870433 | X29: 25
A30: 28 | B30: 2023210615 | C30: 谭芃健 | D30: 催化学硕 | E30: 97.68333333 | F30: 9.3 | G30: 0 | H30: 106.9833333 | I30: 0.9654373722 | J30: 96.54373722 | K30: 76.16235294 | L30: 0 | M30: 0 | N30: 76.16235294 | O30: 0.8531685106 | P30: 85.31685106 | Q30: 100 | R30: 0 | S30: 0 | T30: 100 | U30: 0.9259259259 | V30: 92.59259259 | W30: 88.28980244 | X30: 26
A31: 29 | B31: 2023210616 | C31: 王宇凡 | D31: 催化学硕 | E31: 97.52 | F31: 4 | G31: 0 | H31: 101.52 | I31: 0.9161352424 | J31: 91.61352424 | K31: 75.62105263 | L31: 0 | M31: 0 | N31: 75.62105263 | O31: 0.8471048799 | P31: 84.71048799 | Q31: 100 | R31: 8 | S31: 0 | T31: 108 | U31: 1 | V31: 100 | W31: 87.62004644 | X31: 27
A32: 30 | B32: 2023210622 | C32: 江宽 | D32: 催化学硕 | E32: 97.49666667 | F32: 0 | G32: 0 | H32: 97.49666667 | I32: 0.8798279389 | J32: 87.98279389 | K32: 77.16944444 | L32: 0 | M32: 0 | N32: 77.16944444 | O32: 0.864449921 | P32: 86.4449921 | Q32: 100 | R32: 0 | S32: 0 | T32: 100 | U32: 0.9259259259 | V32: 92.59259259 | W32: 87.3673125 | X32: 28
A33: 31 | B33: 2023210623 | C33: 翟增增 | D33: 催化学硕 | E33: 97.54333333 | F33: 0 | G33: 0 | H33: 97.54333333 | I33: 0.8802490675 | J33: 88.02490675 | K33: 74.86666667 | L33: 0 | M33: 0 | N33: 74.86666667 | O33: 0.8386542698 | P33: 83.86542698 | Q33: 100 | R33: 1.333333333 | S33: 0 | T33: 101.3333333 | U33: 0.9382716049 | V33: 93.82716049 | W33: 85.69349629 | X33: 29
A34: 32 | B34: 2023210624 | C34: 袁晖 | D34: 催化学硕 | E34: 97.66 | F34: 2 | G34: 0 | H34: 99.66 | I34: 0.8993502587 | J34: 89.93502587 | K34: 71.83555556 | L34: 0 | M34: 0 | N34: 71.83555556 | O34: 0.8046998494 | P34: 80.46998494 | Q34: 100 | R34: 0 | S34: 0 | T34: 100 | U34: 0.9259259259 | V34: 92.59259259 | W34: 83.57525389 | X34: 30
A35: 33 | B35: 2023210625 | C35: 梅博翔 | D35: 催化学硕 | E35: 97.45 | F35: 0 | G35: 30 | H35: 67.45 | I35: 0.6086812658 | J35: 60.86812658 | K35: 73.70125 | L35: 0 | M35: 0 | N35: 73.70125 | O35: 0.8255993055 | P35: 82.55993055 | Q35: 100 | R35: 0 | S35: 0 | T35: 100 | U35: 0.9259259259 | V35: 92.59259259 | W35: 79.22483596 | X35: 31

Sheet 催化专硕
A1: 序号 | B1: 学号 | C1: 姓名 | D1: 方向 | E1: 德育部分 | K1: 智育部分 | Q1: 文体部分 | W1: 总分 | X1: 排名
E2: 基础分 | F2: 奖励分 | G2: 惩罚分 | H2: 个人德育总分 | I2: 个人德育总分/基准 | J2: 德育总成绩 | K2: 基础分 | L2: 奖励分 | M2: 惩罚分 | N2: 个人智育总分 | O2: 个人智育总分/基准 | P2: 智育总成绩 | Q2: 基础分 | R2: 奖励分 | S2: 惩罚分 | T2: 个人文体总分 | U2: 个人文体总分/基准 | V2: 文体总成绩
A3: 1 | B3: 2023215372 | C3: 崔晨梦 | D3: 催化专硕 | E3: 97.8 | F3: 8 | G3: 0 | H3: 105.8 | I3: 1 | J3: 100 | K3: 77.74444444 | L3: 9.17 | M3: 0 | N3: 86.91444444 | O3: =N3/87.8441176470588 -> 0.9894167848 | P3: 98.94167848 | Q3: 100 | R3: 4.666666667 | S3: 0 | T3: 104.6666667 | U3: =T3/111.4 -> 0.9395571514 | V3: 93.95571514 | W3: =J3*0.2+P3*0.7+V3*0.1 -> 98.65474645 | X3: 1
A4: 2 | B4: 2023215361 | C4: 孙宇 | D4: 催化专硕 | E4: 97.8 | F4: 5 | G4: 0 | H4: 102.8 | I4: =H4/105.8 -> 0.9716446125 | J4: 97.16446125 | K4: 85.65294118 | L4: 0 | M4: 0 | N4: 85.65294118 | O4: =N4/87.8441176470588 -> 0.975056082 | P4: 97.5056082 | Q4: 100 | R4: 11.4 | S4: 0 | T4: 111.4 | U4: =T4/111.4 -> 1 | V4: 100 | W4: =J4*0.2+P4*0.7+V4*0.1 -> 97.68681799 | X4: 2
A5: 3 | B5: 2023215306 | C5: 江茜茜 | D5: 催化专硕 | E5: 97.8 | F5: 0.5 | G5: 0 | H5: 98.3 | I5: =H5/105.8 -> 0.9291115312 | J5: 92.91115312 | K5: 87.84411765 | L5: 0 | M5: 0 | N5: 87.84411765 | O5: 1 | P5: 100 | Q5: 100 | R5: 0 | S5: 0 | T5: 100 | U5: 0.8976660682 | V5: 89.76660682 | W5: 97.55889131 | X5: 3
A6: 4 | B6: 2023215386 | C6: 邓建权 | D6: 催化专硕 | E6: 97.8 | F6: 0 | G6: 0 | H6: 97.8 | I6: 0.9243856333 | J6: 92.43856333 | K6: 83.58235294 | L6: 0 | M6: 0 | N6: 83.58235294 | O6: 0.9514849165 | P6: 95.14849165 | Q6: 100 | R6: 0 | S6: 0 | T6: 100 | U6: 0.8976660682 | V6: 89.76660682 | W6: 94.0683175 | X6: 4
A7: 5 | B7: 2023215318 | C7: 王彩莉 | D7: 催化专硕 | E7: 97.8 | F7: 1 | G7: 0 | H7: 98.8 | I7: =H7/105.8 -> 0.9338374291 | J7: 93.38374291 | K7: 82.75686275 | L7: 0 | M7: 0 | N7: 82.75686275 | O7: =N7/87.8441176470588 -> 0.9420876999 | P7: 94.20876999 | Q7: 100 | R7: 0 | S7: 0 | T7: 100 | U7: =T7/111.4 -> 0.8976660682 | V7: 89.76660682 | W7: =J7*0.2+P7*0.7+V7*0.1 -> 93.59954826 | X7: 5
A8: 6 | B8: 2023215363 | C8: 刘玉玲 | D8: 催化专硕 | E8: 97.8 | F8: 3.5 | G8: 0 | H8: 101.3 | I8: =H8/105.8 -> 0.9574669187 | J8: 95.74669187 | K8: 82.05833333 | L8: 0 | M8: 0 | N8: 82.05833333 | O8: =N8/87.8441176470588 -> 0.9341357797 | P8: 93.41357797 | Q8: 100 | R8: 0 | S8: 0 | T8: 100 | U8: =T8/111.4 -> 0.8976660682 | V8: 89.76660682 | W8: =J8*0.2+P8*0.7+V8*0.1 -> 93.51550364 | X8: 6
A9: 7 | B9: 2023215380 | C9: 吴一凡 | D9: 催化专硕 | E9: 97.8 | F9: 1.25 | G9: 0 | H9: 99.05 | I9: 0.9362003781 | J9: 93.62003781 | K9: 81.62222222 | L9: 0.83 | M9: 0 | N9: 82.45222222 | O9: 0.9386197327 | P9: 93.86197327 | Q9: 100 | R9: 0 | S9: 0 | T9: 100 | U9: 0.8976660682 | V9: 89.76660682 | W9: 93.40404953 | X9: 7
A10: 8 | B10: 2023215346 | C10: 李萌 | D10: 催化专硕 | E10: 97.8 | F10: 4.25 | G10: 0 | H10: 102.05 | I10: 0.9645557656 | J10: 96.45557656 | K10: 81.38541667 | L10: 0 | M10: 0 | N10: 81.38541667 | O10: 0.92647543 | P10: 92.647543 | Q10: 100 | R10: 0 | S10: 0 | T10: 100 | U10: 0.8976660682 | V10: 89.76660682 | W10: 93.12105609 | X10: 8
A11: 9 | B11: 2023215379 | C11: 刘洪瑜 | D11: 催化专硕 | E11: 97.8 | F11: 4.5 | G11: 0 | H11: 102.3 | I11: 0.9669187146 | J11: 96.69187146 | K11: 79.23333333 | L11: 0 | M11: 0 | N11: 79.23333333 | O11: 0.9019765404 | P11: 90.19765404 | Q11: 100 | R11: 11.33333333 | S11: 0 | T11: 111.3333333 | U11: 0.999401556 | V11: 99.9401556 | W11: 92.47074768 | X11: 9
A12: 10 | B12: 2023215331 | C12: 毛彩云 | D12: 催化专硕 | E12: 97.8 | F12: 6.5 | G12: 0 | H12: 104.3 | I12: 0.9858223062 | J12: 98.58223062 | K12: 79.39722222 | L12: 0 | M12: 0 | N12: 79.39722222 | O12: 0.903842219 | P12: 90.3842219 | Q12: 100 | R12: 5.333333333 | S12: 0 | T12: 105.3333333 | U12: 0.9455415919 | V12: 94.55415919 | W12: 92.44081737 | X12: 10
A13: 11 | B13: 2023215323 | C13: 杨博澳 | D13: 催化专硕 | E13: 97.8 | F13: 4.4 | G13: 0 | H13: 102.2 | I13: 0.965973535 | J13: 96.5973535 | K13: 78.55833333 | L13: 0 | M13: 0 | N13: 78.55833333 | O13: 0.8942924744 | P13: 89.42924744 | Q13: 100 | R13: 0 | S13: 0 | T13: 100 | U13: 0.8976660682 | V13: 89.76660682 | W13: 90.89660459 | X13: 11
A14: 12 | B14: 2023215317 | C14: 孟昕蕊 | D14: 催化专硕 | E14: 97.8 | F14: 0 | G14: 0 | H14: 97.8 | I14: 0.9243856333 | J14: 92.43856333 | K14: 79.53823529 | L14: 0 | M14: 0 | N14: 79.53823529 | O14: 0.9054474838 | P14: 90.54474838 | Q14: 100 | R14: 0 | S14: 0 | T14: 100 | U14: 0.8976660682 | V14: 89.76660682 | W14: 90.84569722 | X14: 12
A15: 13 | B15: 2023215387 | C15: 周也 | D15: 催化专硕 | E15: 97.8 | F15: 2 | G15: 0 | H15: 99.8 | I15: 0.943289225 | J15: 94.3289225 | K15: 79.00084034 | L15: 0 | M15: 0 | N15: 79.00084034 | O15: 0.8993298863 | P15: 89.93298863 | Q15: 100 | R15: 0 | S15: 0 | T15: 100 | U15: 0.8976660682 | V15: 89.76660682 | W15: 90.79553722 | X15: 13
A16: 14 | B16: 2023215329 | C16: 张子健 | D16: 催化专硕 | E16: 97.8 | F16: 0 | G16: 0 | H16: 97.8 | I16: 0.9243856333 | J16: 92.43856333 | K16: 79.1125 | L16: 0 | M16: 0 | N16: 79.1125 | O16: 0.9006009978 | P16: 90.06009978 | Q16: 100 | R16: 0 | S16: 0 | T16: 100 | U16: 0.8976660682 | V16: 89.76660682 | W16: 90.50644319 | X16: 14
A17: 15 | B17: 2023215360 | C17: 倪萌 | D17: 催化专硕 | E17: 97.8 | F17: 4.5 | G17: 0 | H17: 102.3 | I17: 0.9669187146 | J17: 96.69187146 | K17: 76.03035714 | L17: 0 | M17: 0 | N17: 76.03035714 | O17: 0.8655144952 | P17: 86.55144952 | Q17: 100 | R17: 8 | S17: 0 | T17: 108 | U17: 0.9694793537 | V17: 96.94793537 | W17: 89.61918249 | X17: 15
A18: 16 | B18: 2023215332 | C18: 王永发 | D18: 催化专硕 | E18: 97.8 | F18: 0.75 | G18: 0 | H18: 98.55 | I18: 0.9314744802 | J18: 93.14744802 | K18: 77.79117647 | L18: 0 | M18: 0 | N18: 77.79117647 | O18: 0.885559313 | P18: 88.5559313 | Q18: 100 | R18: 0 | S18: 0 | T18: 100 | U18: 0.8976660682 | V18: 89.76660682 | W18: 89.59530219 | X18: 16
A19: 17 | B19: 2023215347 | C19: 孙启宇 | D19: 催化专硕 | E19: 97.8 | F19: 0 | G19: 0 | H19: 97.8 | I19: 0.9243856333 | J19: 92.43856333 | K19: 77.05511364 | L19: 0 | M19: 0 | N19: 77.05511364 | O19: 0.8771801197 | P19: 87.71801197 | Q19: 100 | R19: 8 | S19: 0 | T19: 108 | U19: 0.9694793537 | V19: 96.94793537 | W19: 89.58511458 | X19: 17
A20: 18 | B20: 2023215330 | C20: 周家欣 | D20: 催化专硕 | E20: 97.8 | F20: 1 | G20: 0 | H20: 98.8 | I20: 0.9338374291 | J20: 93.38374291 | K20: 77.42210526 | L20: 0 | M20: 0 | N20: 77.42210526 | O20: 0.8813578796 | P20: 88.13578796 | Q20: 100 | R20: 0 | S20: 0 | T20: 100 | U20: 0.8976660682 | V20: 89.76660682 | W20: 89.34846084 | X20: 18
A21: 19 | B21: 2023215313 | C21: 李亚宁 | D21: 催化专硕 | E21: 97.8 | F21: 0.75 | G21: 0 | H21: 98.55 | I21: 0.9314744802 | J21: 93.14744802 | K21: 76.63823529 | L21: 0 | M21: 0 | N21: 76.63823529 | O21: 0.8724344594 | P21: 87.24344594 | Q21: 100 | R21: 0 | S21: 0 | T21: 100 | U21: 0.8976660682 | V21: 89.76660682 | W21: 88.67656245 | X21: 19
A22: 20 | B22: 2023215314 | C22: 潘佐丞 | D22: 催化专硕 | E22: 97.8 | F22: 0 | G22: 0 | H22: 97.8 | I22: 0.9243856333 | J22: 92.43856333 | K22: 75.94705882 | L22: 0 | M22: 0 | N22: 75.94705882 | O22: 0.8645662437 | P22: 86.45662437 | Q22: 100 | R22: 0 | S22: 0 | T22: 100 | U22: 0.8976660682 | V22: 89.76660682 | W22: 87.98401041 | X22: 20
A23: 21 | B23: 2023215324 | C23: 张馨月 | D23: 催化专硕 | E23: 97.8 | F23: 1 | G23: 0 | H23: 98.8 | I23: 0.9338374291 | J23: 93.38374291 | K23: 75.52941176 | L23: 0 | M23: 0 | N23: 75.52941176 | O23: 0.8598118325 | P23: 85.98118325 | Q23: 100 | R23: 0 | S23: 0 | T23: 100 | U23: 0.8976660682 | V23: 89.76660682 | W23: 87.84023754 | X23: 21
A24: 22 | B24: 2023215343 | C24: 周旭东 | D24: 催化专硕 | E24: 97.8 | F24: 1.25 | G24: 0 | H24: 99.05 | I24: 0.9362003781 | J24: 93.62003781 | K24: 72.33764706 | L24: 0 | M24: 0 | N24: 72.33764706 | O24: 0.8234774165 | P24: 82.34774165 | Q24: 100 | R24: 0 | S24: 0 | T24: 100 | U24: 0.8976660682 | V24: 89.76660682 | W24: 85.3440874 | X24: 22
A25: 23 | B25: 2023215308 | C25: 张煜睿 | D25: 催化专硕 | E25: 97.8 | F25: 5 | G25: 30 | H25: 72.8 | I25: 0.6880907372 | J25: 68.80907372 | K25: 76.86029413 | L25: 0 | M25: 0 | N25: 76.86029413 | O25: 0.8749623331 | P25: 87.49623331 | Q25: 100 | R25: 0 | S25: 0 | T25: 100 | U25: 0.8976660682 | V25: 89.76660682 | W25: 83.98583874 | X25: 23
A26: 24 | B26: 2023215307 | C26: 王心雨 | D26: 催化专硕 | E26: 97.8 | F26: 0.75 | G26: 30 | H26: 68.55 | I26: 0.6479206049 | J26: 64.79206049 | K26: 72.31294118 | L26: 0 | M26: 0 | N26: 72.31294118 | O26: 0.8231961698 | P26: 82.31961698 | Q26: 100 | R26: 0 | S26: 0 | T26: 100 | U26: 0.8976660682 | V26: 89.76660682 | W26: 79.55880467 | X26: 24

Sheet 环境学硕
A1: 序号 | B1: 学号 | C1: 姓名 | D1: 方向 | E1: 德育成绩 | K1: 智育成绩 | Q1: 文体成绩 | W1: 总分 | X1: 排名
E2: 基础分 | F2: 奖励分 | G2: 惩罚分 | H2: 个人德育总分 | I2: 个人德育总分/基准 | J2: 德育总成绩 | K2: 基础分 | L2: 奖励分 | M2: 惩罚分 | N2: 个人智育总分 | O2: 个人智育总分/基准 | P2: 智育总成绩 | Q2: 基础分 | R2: 奖励分 | S2: 惩罚分 | T2: 个人文体总分 | U2: 个人文体总分/基准 | V2: 文体总成绩
A3: 1 | B3: 2022210656 | C3: 王皓铖 | D3: 环境学硕 | E3: — | F3: — | G3: — | H3: — | I3: — | J3: — | K3: — | L3: — | M3: — | N3: — | O3: — | P3: — | Q3: — | R3: — | S3: — | T3: — | U3: — | V3: — | W3: — | X3: — | Y3: 助管
A4: 2 | B4: 2023210654 | C4: 王瑛璠 | D4: 环境学硕 | E4: — | F4: — | G4: — | H4: — | I4: — | J4: — | K4: — | L4: — | M4: — | N4: — | O4: — | P4: — | Q4: — | R4: — | S4: — | T4: — | U4: — | V4: — | W4: — | X4: — | Y4: 助管
A5: 3 | B5: 2023210653 | C5: 王怡 | D5: 环境学硕 | E5: 97.74615385 | F5: 11.8 | G5: 0 | H5: =E5+F5 -> 109.5461538 | I5: =H5/112.5641026 -> 0.9731891 | J5: =100*H5/112.5641026 -> 97.31890657 | K5: 86.5625 | L5: 5.875 | M5: 0 | N5: =K5+L5 -> 92.4375 | O5: =N5/96.188487 -> 0.9610038 | P5: =100*N5/96.188487 -> 96.10037842 | Q5: 100 | R5: 17.06666667 | S5: 0 | T5: =Q5+R5 -> 117.0666667 | U5: =T5/117.06667 -> 1.0000000 | V5: =100*T5/117.06667 -> 99.99999715 | W5: =J5*0.2+P5*0.7+V5*0.1 -> 96.7340459 | X5: 1
A6: 4 | B6: 2023210671 | C6: 孟德静 | D6: 环境学硕 | E6: 97.76410256 | F6: 2 | G6: 0 | H6: 99.76410256 | I6: 0.8862870 | J6: 88.62870157 | K6: 86.36705882 | L6: 9.821428571 | M6: 0 | N6: 96.18848739 | O6: 1.0000000 | P6: 100.0000004 | Q6: 100 | R6: 0 | S6: 0 | T6: 100 | U6: 0.8542141 | V6: 85.42140987 | W6: 96.2678816 | X6: 2
A7: 5 | B7: 2023210664 | C7: 周睿 | D7: 环境学硕 | E7: 97.74615385 | F7: 0 | G7: 0 | H7: 97.74615385 | I7: 0.8683599 | J7: 86.83599086 | K7: 89.58333333 | L7: 6 | M7: 0 | N7: 95.58333333 | O7: 0.9937087 | P7: 99.37086684 | Q7: 100 | R7: 0 | S7: 0 | T7: 100 | U7: 0.8542141 | V7: 85.42140987 | W7: 95.4689459 | X7: 3
A8: 6 | B8: 2023210643 | C8: 安佳怡 | D8: 环境学硕 | E8: 97.71025641 | F8: 5.5 | G8: 0 | H8: 103.2102564 | I8: 0.9169020 | J8: 91.69020498 | K8: 91.35625 | L8: 2.142857143 | M8: 0 | N8: 93.49910714 | O8: 0.9720405 | P8: 97.20405223 | Q8: 100 | R8: 1.333333333 | S8: 0 | T8: 101.3333333 | U8: 0.8656036 | V8: 86.560362 | W8: 95.0369138 | X8: 4
A9: 7 | B9: 2023210645 | C9: 田丽婷 | D9: 环境学硕 | E9: 97.76410256 | F9: 9 | G9: 0 | H9: 106.7641026 | I9: 0.9484738 | J9: 94.84738038 | K9: 88.96875 | L9: 2.142857143 | M9: 0 | N9: 91.11160714 | O9: 0.9472195 | P9: 94.72194645 | Q9: 100 | R9: 7 | S9: 0 | T9: 107 | U9: 0.9140091 | V9: 91.40090856 | W9: 94.4149294 | X9: 5
A10: 8 | B10: 2023210634 | C10: 张乘慧 | D10: 环境学硕 | E10: 97.8 | F10: 12.8 | G10: 0 | H10: 110.6 | I10: 0.9825513 | J10: 98.25512525 | K10: 88.89375 | L10: 1.48015873 | M10: 0 | N10: 90.37390873 | O10: 0.9395502 | P10: 93.95501639 | Q10: 100 | R10: 0 | S10: 0 | T10: 100 | U10: 0.8542141 | V10: 85.42140987 | W10: 93.9616775 | X10: 6
A11: 9 | B11: 2023210667 | C11: 赵泽玉 | D11: 环境学硕 | E11: 97.76410256 | F11: 11 | G11: 0 | H11: 108.7641026 | I11: 0.9662415 | J11: 96.62414576 | K11: 89.58 | L11: 0.06 | M11: 0 | N11: 89.64 | O11: 0.9319203 | P11: 93.19202619 | Q11: 100 | R11: 0 | S11: 0 | T11: 100 | U11: 0.8542141 | V11: 85.42140987 | W11: 93.1013885 | X11: 7
A12: 10 | B12: 2023210656 | C12: 张朦 | D12: 环境学硕 | E12: 97.74615385 | F12: 6.25 | G12: 0 | H12: 103.9961538 | I12: 0.9238838 | J12: 92.38838266 | K12: 90.55384615 | L12: 0 | M12: 0 | N12: 90.55384615 | O12: 0.9414208 | P12: 94.14208392 | Q12: 100 | R12: 0 | S12: 0 | T12: 100 | U12: 0.8542141 | V12: 85.42140987 | W12: 92.9192763 | X12: 8
A13: 11 | B13: 2023210646 | C13: 周薇 | D13: 环境学硕 | E13: 97.78205128 | F13: 0 | G13: 0 | H13: 97.78205128 | I13: 0.8686788 | J13: 86.86788152 | K13: 89.35 | L13: 2.142857143 | M13: 0 | N13: 91.49285714 | O13: 0.9511830 | P13: 95.11830365 | Q13: 100 | R13: 0 | S13: 0 | T13: 100 | U13: 0.8542141 | V13: 85.42140987 | W13: 92.4985298 | X13: 9
A14: 12 | B14: 2023210661 | C14: 朱怡霏 | D14: 环境学硕 | E14: 97.76410256 | F14: 8 | G14: 0 | H14: 105.7641026 | I14: 0.9395900 | J14: 93.95899769 | K14: 88.8625 | L14: 0.075 | M14: 0 | N14: 88.9375 | O14: 0.9246169 | P14: 92.46168931 | Q14: 100 | R14: 2 | S14: 0 | T14: 102 | U14: 0.8712984 | V14: 87.12983807 | W14: 92.2279659 | X14: 10
A15: 13 | B15: 2023210642 | C15: 杨梦涵 | D15: 环境学硕 | E15: 97.78205128 | F15: 2.75 | G15: 0 | H15: 100.5320513 | I15: 0.8931093 | J15: 89.31093391 | K15: 90 | L15: 0 | M15: 0 | N15: 90 | O15: 0.9356629 | P15: 93.56629136 | Q15: 100 | R15: 0 | S15: 0 | T15: 100 | U15: 0.8542141 | V15: 85.42140987 | W15: 91.9007317 | X15: 11
A16: 14 | B16: 2023210641 | C16: 程诚 | D16: 环境学硕 | E16: 97.78205128 | F16: 6 | G16: 0 | H16: 103.7820513 | I16: 0.9219818 | J16: 92.19817765 | K16: 88.42 | L16: 0 | M16: 0 | N16: 88.42 | O16: 0.9192368 | P16: 91.92368313 | Q16: 100 | R16: 0 | S16: 0 | T16: 100 | U16: 0.8542141 | V16: 85.42140987 | W16: 91.3283547 | X16: 12
A17: 15 | B17: 2023210670 | C17: 刘文婧 | D17: 环境学硕 | E17: 97.74615385 | F17: 0 | G17: 0 | H17: 97.74615385 | I17: 0.8683599 | J17: 86.83599086 | K17: 79.92 | L17: 9.821428571 | M17: 0 | N17: 89.74142857 | O17: 0.9329747 | P17: 93.29747392 | Q17: 100 | R17: 0 | S17: 0 | T17: 100 | U17: 0.8542141 | V17: 85.42140987 | W17: 91.2175709 | X17: 13
A18: 16 | B18: 2023210633 | C18: 肖心语 | D18: 环境学硕 | E18: 97.74615385 | F18: 4.5 | G18: 0 | H18: 102.2461538 | I18: 0.9083371 | J18: 90.83371296 | K18: 87.41125 | L18: 0 | M18: 0 | N18: 87.41125 | O18: 0.9087496 | P18: 90.87496095 | Q18: 100 | R18: 8 | S18: 0 | T18: 108 | U18: 0.9225512 | V18: 92.25512266 | W18: 91.0047275 | X18: 14
A19: 17 | B19: 2023210666 | C19: 牛泽琳 | D19: 环境学硕 | E19: 97.78205128 | F19: 4.5 | G19: 0 | H19: 102.2820513 | I19: 0.9086560 | J19: 90.86560362 | K19: 87.69444444 | L19: 0.075 | M19: 0 | N19: 87.76944444 | O19: 0.9124735 | P19: 91.24734901 | Q19: 100 | R19: 0 | S19: 0 | T19: 100 | U19: 0.8542141 | V19: 85.42140987 | W19: 90.5884060 | X19: 15
A20: 18 | B20: 2023210648 | C20: 史凡佳 | D20: 环境学硕 | E20: 97.78205128 | F20: 3.75 | G20: 0 | H20: 101.5320513 | I20: 0.9019932 | J20: 90.1993166 | K20: 86.84285714 | L20: 0 | M20: 0 | N20: 86.84285714 | O20: 0.9028405 | P20: 90.28404527 | Q20: 100 | R20: 5 | S20: 0 | T20: 105 | U20: 0.8969248 | V20: 89.69248036 | W20: 90.2079430 | X20: 16
A21: 19 | B21: 2023210655 | C21: 左慧 | D21: 环境学硕 | E21: 97.76410256 | F21: 1 | G21: 0 | H21: 98.76410256 | I21: 0.8774032 | J21: 87.74031888 | K21: 87.875 | L21: 0.09375 | M21: 0 | N21: 87.96875 | O21: 0.9145455 | P21: 91.45455214 | Q21: 100 | R21: 0 | S21: 0 | T21: 100 | U21: 0.8542141 | V21: 85.42140987 | W21: 90.1083913 | X21: 17
A22: 20 | B22: 2023210662 | C22: 朱文杰 | D22: 环境学硕 | E22: 97.76410256 | F22: 5.75 | G22: 0 | H22: 103.5141026 | I22: 0.9196014 | J22: 91.96013664 | K22: 85.42222222 | L22: 0.5 | M22: 0 | N22: 85.92222222 | O22: 0.8932693 | P22: 89.32692976 | Q22: 100 | R22: 6.666666667 | S22: 0 | T22: 106.6666667 | U22: 0.9111617 | V22: 91.11617053 | W22: 90.0324952 | X22: 18
A23: 21 | B23: 2023210674 | C23: 彭慧民 | D23: 环境学硕 | E23: 97.78205128 | F23: 7.25 | G23: 0 | H23: 105.0320513 | I23: 0.9330866 | J23: 93.30865601 | K23: 86.18125 | L23: 0 | M23: 0 | N23: 86.18125 | O23: 0.8959622 | P23: 89.59622164 | Q23: 100 | R23: 0 | S23: 0 | T23: 100 | U23: 0.8542141 | V23: 85.42140987 | W23: 89.9212273 | X23: 19
A24: 22 | B24: 2023210649 | C24: 祁润宇 | D24: 环境学硕 | E24: 97.76410256 | F24: 14.8 | G24: 0 | H24: 112.5641026 | I24: 1.0000000 | J24: 99.99999997 | K24: 84.18333333 | L24: 0 | M24: 0 | N24: 84.18333333 | O24: 0.8751914 | P24: 87.5191366 | Q24: 100 | R24: 1.333333333 | S24: 0 | T24: 101.3333333 | U24: 0.8656036 | V24: 86.560362 | W24: 89.9194318 | X24: 20
A25: 23 | B25: 2023210675 | C25: 张旭 | D25: 环境学硕 | E25: 97.78205128 | F25: 10.5 | G25: 0 | H25: 108.2820513 | I25: 0.9619590 | J25: 96.19589974 | K25: 85.19375 | L25: 0 | M25: 0 | N25: 85.19375 | O25: 0.8856959 | P25: 88.56959149 | Q25: 100 | R25: 0 | S25: 0 | T25: 100 | U25: 0.8542141 | V25: 85.42140987 | W25: 89.7800350 | X25: 21
A26: 24 | B26: 2023210644 | C26: 孙金博 | D26: 环境学硕 | E26: 97.72820513 | F26: 10.5 | G26: 0 | H26: 108.2282051 | I26: 0.9614806 | J26: 96.14806375 | K26: 84.81875 | L26: 0 | M26: 0 | N26: 84.81875 | O26: 0.8817973 | P26: 88.17973195 | Q26: 100 | R26: 2 | S26: 0 | T26: 102 | U26: 0.8712984 | V26: 87.12983807 | W26: 89.6684089 | X26: 22
A27: 25 | B27: 2023210660 | C27: 张慧 | D27: 环境学硕 | E27: 97.78205128 | F27: 2 | G27: 0 | H27: 99.78205128 | I27: 0.8864465 | J27: 88.6446469 | K27: 86.8125 | L27: 0 | M27: 0 | N27: 86.8125 | O27: 0.9025249 | P27: 90.25248521 | Q27: 100 | R27: 0 | S27: 0 | T27: 100 | U27: 0.8542141 | V27: 85.42140987 | W27: 89.4478100 | X27: 23
A28: 26 | B28: 2023210647 | C28: 程蕊 | D28: 环境学硕 | E28: 97.76410256 | F28: 11 | G28: 0 | H28: 108.7641026 | I28: 0.9662415 | J28: 96.62414576 | K28: 84.61098901 | L28: 0 | M28: 0 | N28: 84.61098901 | O28: 0.8796374 | P28: 87.96373833 | Q28: 100 | R28: 0 | S28: 0 | T28: 100 | U28: 0.8542141 | V28: 85.42140987 | W28: 89.4415870 | X28: 24
A29: 27 | B29: 2023210632 | C29: 王瑞涵 | D29: 环境学硕 | E29: 97.76410256 | F29: 4 | G29: 0 | H29: 101.7641026 | I29: 0.9040547 | J29: 90.40546694 | K29: 85.35625 | L29: 0 | M29: 0 | N29: 85.35625 | O29: 0.8873853 | P29: 88.73853063 | Q29: 100 | R29: 7.333333333 | S29: 0 | T29: 107.3333333 | U29: 0.9168565 | V29: 91.68564659 | W29: 89.3666295 | X29: 25
A30: 28 | B30: 2023210637 | C30: 于超凡 | D30: 环境学硕 | E30: 97.74615385 | F30: 6 | G30: 0 | H30: 103.7461538 | I30: 0.9216629 | J30: 92.16628699 | K30: 84.82875 | L30: 0 | M30: 0 | N30: 84.82875 | O30: 0.8819013 | P30: 88.1901282 | Q30: 100 | R30: 0 | S30: 0 | T30: 100 | U30: 0.8542141 | V30: 85.42140987 | W30: 88.7084881 | X30: 26
A31: 29 | B31: 2023210668 | C31: 郭晨 | D31: 环境学硕 | E31: 97.78205128 | F31: 0.5 | G31: 0 | H31: 98.28205128 | I31: 0.8731207 | J31: 87.31207287 | K31: 86.09333333 | L31: 0 | M31: 0 | N31: 86.09333333 | O31: 0.8950482 | P31: 89.50482123 | Q31: 100 | R31: 0 | S31: 0 | T31: 100 | U31: 0.8542141 | V31: 85.42140987 | W31: 88.6579304 | X31: 27
A32: 30 | B32: 2023210657 | C32: 周兴楠 | D32: 环境学硕 | E32: 97.72820513 | F32: 11 | G32: 0 | H32: 108.7282051 | I32: 0.9659226 | J32: 96.59225509 | K32: 82.41333333 | L32: 0 | M32: 0 | N32: 82.41333333 | O32: 0.8567900 | P32: 85.67899954 | Q32: 100 | R32: 1.333333333 | S32: 0 | T32: 101.3333333 | U32: 0.8656036 | V32: 86.560362 | W32: 87.9497869 | X32: 28
A33: 31 | B33: 2023210652 | C33: 李昕玥 | D33: 环境学硕 | E33: 97.78205128 | F33: 0 | G33: 0 | H33: 97.78205128 | I33: 0.8686788 | J33: 86.86788152 | K33: 85.15789474 | L33: 0 | M33: 0 | N33: 85.15789474 | O33: 0.8853232 | P33: 88.53231545 | Q33: 100 | R33: 0 | S33: 0 | T33: 100 | U33: 0.8542141 | V33: 85.42140987 | W33: 87.8883381 | X33: 29
A34: 32 | B34: 2023210651 | C34: 黄康平 | D34: 环境学硕 | E34: 97.74615385 | F34: 11.8 | G34: 0 | H34: 109.5461538 | I34: 0.9731891 | J34: 97.31890657 | K34: 81.16315789 | L34: 0 | M34: 0 | N34: 81.16315789 | O34: 0.8437929 | P34: 84.37928532 | Q34: 100 | R34: 2 | S34: 0 | T34: 102 | U34: 0.8712984 | V34: 87.12983807 | W34: 87.2422648 | X34: 30
A35: 33 | B35: 2023210638 | C35: 张晓玉 | D35: 环境学硕 | E35: 97.78205128 | F35: 2.5 | G35: 0 | H35: 100.2820513 | I35: 0.8908884 | J35: 89.08883824 | K35: 83.16941176 | L35: 0.4 | M35: 0 | N35: 83.56941176 | O35: 0.8688089 | P35: 86.88088811 | Q35: 100 | R35: 0 | S35: 0 | T35: 100 | U35: 0.8542141 | V35: 85.42140987 | W35: 87.1765303 | X35: 31
A36: 34 | B36: 2023210659 | C36: 李秋实 | D36: 环境学硕 | E36: 97.71025641 | F36: 0.5 | G36: 0 | H36: 98.21025641 | I36: 0.8724829 | J36: 87.24829154 | K36: 82.46666667 | L36: 0 | M36: 0 | N36: 82.46666667 | O36: 0.8573445 | P36: 85.73444623 | Q36: 100 | R36: 0 | S36: 0 | T36: 100 | U36: 0.8542141 | V36: 85.42140987 | W36: 86.0059117 | X36: 32
A37: 35 | B37: 2023210663 | C37: 于京京 | D37: 环境学硕 | E37: 97.78205128 | F37: 0 | G37: 0 | H37: 97.78205128 | I37: 0.8686788 | J37: 86.86788152 | K37: 82.51666667 | L37: 0 | M37: 0 | N37: 82.51666667 | O37: 0.8578643 | P37: 85.7864275 | Q37: 100 | R37: 0 | S37: 0 | T37: 100 | U37: 0.8542141 | V37: 85.42140987 | W37: 85.9662165 | X37: 33
A38: 36 | B38: 2023210650 | C38: 程子涵 | D38: 环境学硕 | E38: 97.72820513 | F38: 1 | G38: 0 | H38: 98.72820513 | I38: 0.8770843 | J38: 87.70842822 | K38: 81.865 | L38: 0 | M38: 0 | N38: 81.865 | O38: 0.8510894 | P38: 85.10893825 | Q38: 100 | R38: 0 | S38: 0 | T38: 100 | U38: 0.8542141 | V38: 85.42140987 | W38: 85.6600834 | X38: 34
A39: 37 | B39: 2023210669 | C39: 姚玲珑 | D39: 环境学硕 | E39: 97.76410256 | F39: 8.8 | G39: 0 | H39: 106.5641026 | I39: 0.9466970 | J39: 94.66970384 | K39: 77.06 | L39: 0.5 | M39: 0 | N39: 77.56 | O39: 0.8063335 | P39: 80.63335064 | Q39: 100 | R39: 4.666666667 | S39: 0 | T39: 104.6666667 | U39: 0.8940774 | V39: 89.40774233 | W39: 84.3180605 | X39: 35
A40: 38 | B40: 2023210673 | C40: 曾子严 | D40: 环境学硕 | E40: 97.78205128 | F40: 3.5 | G40: 0 | H40: 101.2820513 | I40: 0.8997722 | J40: 89.97722093 | K40: 77.26923077 | L40: 1.5 | M40: 0 | N40: 78.76923077 | O40: 0.8189050 | P40: 81.89049774 | Q40: 100 | R40: 0 | S40: 0 | T40: 100 | U40: 0.8542141 | V40: 85.42140987 | W40: 83.8609336 | X40: 36
A41: 39 | B41: 2023210636 | C41: 郭鹏辉 | D41: 环境学硕 | E41: 97.76410256 | F41: 1 | G41: 0 | H41: 98.76410256 | I41: 0.8774032 | J41: 87.74031888 | K41: 79.1247619 | L41: 0 | M41: 0 | N41: 79.1247619 | O41: 0.8226012 | P41: 82.26011696 | Q41: 100 | R41: 0 | S41: 0 | T41: 100 | U41: 0.8542141 | V41: 85.42140987 | W41: 83.6722866 | X41: 37
A42: 40 | B42: 2023210635 | C42: 戴国辉 | D42: 环境学硕 | E42: 97.78205128 | F42: 0 | G42: 0 | H42: 97.78205128 | I42: 0.8686788 | J42: 86.86788152 | K42: 78.52105263 | L42: 0 | M42: 0 | N42: 78.52105263 | O42: 0.8163249 | P42: 81.63248543 | Q42: 100 | R42: 0 | S42: 0 | T42: 100 | U42: 0.8542141 | V42: 85.42140987 | W42: 83.0584571 | X42: 38
A43: 41 | B43: 2023210658 | C43: 祝万里 | D43: 环境学硕 | E43: 97.76410256 | F43: 3 | G43: 0 | H43: 100.7641026 | I43: 0.8951708 | J43: 89.51708425 | K43: 75.8275 | L43: 0 | M43: 0 | N43: 75.8275 | O43: 0.7883220 | P43: 78.83219953 | Q43: 100 | R43: 0 | S43: 0 | T43: 100 | U43: 0.8542141 | V43: 85.42140987 | W43: 81.6280975 | X43: 39
A44: 42 | B44: 2023210672 | C44: 梁璐 | D44: 环境学硕 | E44: 97.76410256 | F44: 0 | G44: 0 | H44: 97.76410256 | I44: 0.8685194 | J44: 86.85193619 | K44: 74.52333333 | L44: 0 | M44: 0 | N44: 74.52333333 | O44: 0.7747635 | P44: 77.47635466 | Q44: 100 | R44: 0 | S44: 0 | T44: 100 | U44: 0.8542141 | V44: 85.42140987 | W44: 80.1459765 | X44: 40

Sheet 环境专硕
A1: 序号 | B1: 学号 | C1: 姓名 | D1: 方向 | E1: 德育成绩 | K1: 智育成绩 | Q1: 文体成绩 | W1: 总分 | X1: 排名
E2: 基础分 | F2: 奖励分 | G2: 惩罚分 | H2: 个人德育总分 | I2: 个人德育总分/基准 | J2: 德育总成绩 | K2: 基础分 | L2: 奖励分 | M2: 惩罚分 | N2: 个人智育总分 | O2: 个人智育总分/基准 | P2: 智育总成绩 | Q2: 基础分 | R2: 奖励分 | S2: 惩罚分 | T2: 个人文体总分 | U2: 个人文体总分/基准 | V2: 文体总成绩
A3: 1 | B3: 2023215406 | C3: 耿小蝶 | D3: 环境专硕 | E3: 97.76315789 | F3: 1 | G3: 0 | H3: =E3+F3 -> 98.76315789 | I3: =H3/108.7631579 -> 0.9080571 | J3: =100*H3/108.7631579 -> 90.80571013 | K3: 82.91932773 | L3: 9.821428571 | M3: 0 | N3: =K3+L3 -> 92.7407563 | O3: =N3/92.740756 -> 1.0000000 | P3: =100*N3/92.740756 -> 100.0000003 | Q3: 100 | R3: 0 | S3: 0 | T3: =Q3+R3 -> 100 | U3: =T3/122.66667 -> 0.8152174 | V3: =100*T3/122.666666666666 -> 81.5217391 | W3: =J3*0.2+P3*0.7+V3*0.1 -> 96.3133162 | X3: 1
A4: 2 | B4: 2023215398 | C4: 王晨露 | D4: 环境专硕 | E4: 97.72631579 | F4: 10.15 | G4: 0 | H4: 107.8763158 | I4: 0.9918461 | J4: 99.18461166 | K4: 88.33125 | L4: 0 | M4: 0 | N4: 88.33125 | O4: 0.9524534 | P4: 95.24534176 | Q4: 100 | R4: 0 | S4: 0 | T4: 100 | U4: 0.8152174 | V4: 81.5217391 | W4: 94.6608355 | X4: 2
A5: 3 | B5: 2023215388 | C5: 罗文 | D5: 环境专硕 | E5: 97.76315789 | F5: 0 | G5: 0 | H5: 97.76315789 | I5: 0.8988628 | J5: 89.88628115 | K5: 88.82058824 | L5: 0 | M5: 0 | N5: 88.82058824 | O5: 0.9577298 | P5: 95.77298274 | Q5: 100 | R5: 0 | S5: 0 | T5: 100 | U5: 0.8152174 | V5: 81.5217391 | W5: 93.1705181 | X5: 3
A6: 4 | B6: 2023215399 | C6: 楚悦 | D6: 环境专硕 | E6: 97.8 | F6: 4 | G6: 0 | H6: 101.8 | I6: 0.9359787 | J6: 93.59787079 | K6: 87.58947368 | L6: 0 | M6: 0 | N6: 87.58947368 | O6: 0.9444550 | P6: 94.44550321 | Q6: 100 | R6: 0 | S6: 0 | T6: 100 | U6: 0.8152174 | V6: 81.5217391 | W6: 92.9836003 | X6: 4
A7: 5 | B7: 2023215396 | C7: 李海岩 | D7: 环境专硕 | E7: 97.76315789 | F7: 4 | G7: 0 | H7: 101.7631579 | I7: 0.9356400 | J7: 93.56399709 | K7: 87.07916667 | L7: 0 | M7: 0 | N7: 87.07916667 | O7: 0.9389525 | P7: 93.89525212 | Q7: 100 | R7: 0 | S7: 0 | T7: 100 | U7: 0.8152174 | V7: 81.5217391 | W7: 92.5916498 | X7: 5
A8: 6 | B8: 2023215395 | C8: 曹江浩 | D8: 环境专硕 | E8: 97.72631579 | F8: 0 | G8: 0 | H8: 97.72631579 | I8: 0.8985241 | J8: 89.85240745 | K8: 87.68421053 | L8: 0 | M8: 0 | N8: 87.68421053 | O8: 0.9454766 | P8: 94.54765554 | Q8: 100 | R8: 0 | S8: 0 | T8: 100 | U8: 0.8152174 | V8: 81.5217391 | W8: 92.3060143 | X8: 6
A9: 7 | B9: 2023215400 | C9: 谢承翰 | D9: 环境专硕 | E9: 97.68947368 | F9: 5 | G9: 0 | H9: 102.6894737 | I9: 0.9441568 | J9: 94.41567868 | K9: 83.80526316 | L9: 0 | M9: 0 | N9: 83.80526316 | O9: 0.9036509 | P9: 90.36508518 | Q9: 100 | R9: 22.66666667 | S9: 0 | T9: 122.6666667 | U9: 1.0000000 | V9: =100*T9/122.666666667 -> 100.0000000 | W9: 92.1386954 | X9: 7
A10: 8 | B10: 2023215392 | C10: 马海润 | D10: 环境专硕 | E10: 97.72631579 | F10: 7.5 | G10: 0 | H10: 105.2263158 | I10: 0.9674812 | J10: 96.74812484 | K10: 80.00526316 | L10: 4 | M10: 0 | N10: 84.00526316 | O10: 0.9058074 | P10: 90.5807401 | Q10: 100 | R10: 7.6 | S10: 0 | T10: 107.6 | U10: 0.8771739 | V10: =100*T10/122.666666666666 -> 87.7173913 | W10: 91.5278822 | X10: 8
A11: 9 | B11: 2023215391 | C11: 陈晓吉 | D11: 环境专硕 | E11: 97.76315789 | F11: 7.5 | G11: 0 | H11: 105.2631579 | I11: 0.9678200 | J11: 96.78199854 | K11: 83.22105263 | L11: 0 | M11: 0 | N11: 83.22105263 | O11: 0.8973515 | P11: 89.73514582 | Q11: 100 | R11: 5.333333333 | S11: 0 | T11: 105.3333333 | U11: 0.8586956 | V11: 85.8695652 | W11: 90.7579583 | X11: 9
A12: 10 | B12: 2023215397 | C12: 刘畅 | D12: 环境专硕 | E12: 97.76315789 | F12: 11 | G12: 0 | H12: 108.7631579 | I12: 1.0000000 | J12: 100 | K12: 82.27647059 | L12: 0 | M12: 0 | N12: 82.27647059 | O12: 0.8871663 | P12: 88.71662701 | Q12: 100 | R12: 0 | S12: 0 | T12: 100 | U12: 0.8152174 | V12: 81.5217391 | W12: 90.2538128 | X12: 10
A13: 11 | B13: 2023215407 | C13: 胡达民 | D13: 环境专硕 | E13: 97.76315789 | F13: 0 | G13: 0 | H13: 97.76315789 | I13: 0.8988628 | J13: 89.88628115 | K13: 80.77815126 | L13: 4.1666666 | M13: 0 | N13: 84.94481786 | O13: 0.9159384 | P13: 91.59383805 | Q13: 100 | R13: 0 | S13: 0 | T13: 100 | U13: 0.8152174 | V13: 81.5217391 | W13: 90.2451168 | X13: 11
A14: 12 | B14: 2023215393 | C14: 李若熙 | D14: 环境专硕 | E14: 97.76315789 | F14: 6.5 | G14: 0 | H14: 104.2631579 | I14: 0.9586257 | J14: 95.86256956 | K14: 82.15882353 | L14: 0 | M14: 0 | N14: 82.15882353 | O14: 0.8858977 | P14: 88.58977118 | Q14: 100 | R14: 7.933333333 | S14: 0 | T14: 107.9333333 | U14: 0.8798913 | V14: 87.9891304 | W14: 89.9842668 | X14: 12
A15: 13 | B15: 2023215394 | C15: 杨子茵 | D15: 环境专硕 | E15: 97.65263158 | F15: 0.5 | G15: 0 | H15: 98.15263158 | I15: 0.9024437 | J15: 90.24437454 | K15: 83.05882353 | L15: 0 | M15: 0 | N15: 83.05882353 | O15: 0.8956022 | P15: 89.5602183 | Q15: 100 | R15: 4.666666667 | S15: 0 | T15: 104.6666667 | U15: 0.8532608 | V15: 85.3260870 | W15: 89.2736364 | X15: 13
A16: 14 | B16: 2023215404 | C16: 朱岳恒 | D16: 环境专硕 | E16: 97.72631579 | F16: 0 | G16: 0 | H16: 97.72631579 | I16: 0.8985241 | J16: 89.85240745 | K16: 83.36842105 | L16: 0 | M16: 0 | N16: 83.36842105 | O16: 0.8989405 | P16: 89.89404944 | Q16: 100 | R16: 0 | S16: 0 | T16: 100 | U16: 0.8152174 | V16: 81.5217391 | W16: 89.0484900 | X16: 14
A17: 15 | B17: 2023215389 | C17: 薛世博 | D17: 环境专硕 | E17: 97.76315789 | F17: 0.5 | G17: 0 | H17: 98.26315789 | I17: 0.9034600 | J17: 90.34599564 | K17: 82.85735294 | L17: 0 | M17: 0 | N17: 82.85735294 | O17: 0.8934298 | P17: 89.34297769 | Q17: 100 | R17: 0 | S17: 0 | T17: 100 | U17: 0.8152174 | V17: 81.5217391 | W17: 88.7614574 | X17: 15
A18: 16 | B18: 2023215402 | C18: 袁野 | D18: 环境专硕 | E18: 97.76315789 | F18: 0 | G18: 0 | H18: 97.76315789 | I18: 0.8988628 | J18: 89.88628115 | K18: 81.18970588 | L18: 0 | M18: 0 | N18: 81.18970588 | O18: 0.8754480 | P18: 87.54479625 | Q18: 100 | R18: 0 | S18: 0 | T18: 100 | U18: 0.8152174 | V18: 81.5217391 | W18: 87.4107875 | X18: 16
A19: 17 | B19: 2023215390 | C19: 李烁 | D19: 环境专硕 | E19: 97.68947368 | F19: 0.5 | G19: 0 | H19: 98.18947368 | I19: 0.9027825 | J19: 90.27824824 | K19: 80.74210526 | L19: 0 | M19: 0 | N19: 80.74210526 | O19: 0.8706216 | P19: 87.06215988 | Q19: 100 | R19: 0 | S19: 0 | T19: 100 | U19: 0.8152174 | V19: 81.5217391 | W19: 87.1513355 | X19: 17
A20: 18 | B20: 2023215401 | C20: 乔兰 | D20: 环境专硕 | E20: 97.76315789 | F20: 1.75 | G20: 0 | H20: 99.51315789 | I20: 0.9149528 | J20: 91.49528187 | K20: 78.59915966 | L20: 0 | M20: 0 | N20: 78.59915966 | O20: 0.8475148 | P20: 84.75147611 | Q20: 100 | R20: 0 | S20: 0 | T20: 100 | U20: 0.8152174 | V20: 81.5217391 | W20: 85.7772636 | X20: 18
A21: 19 | B21: 2023215405 | C21: 吴泽笠 | D21: 环境专硕 | E21: 97.76315789 | F21: 0 | G21: 0 | H21: 97.76315789 | I21: 0.8988628 | J21: 89.88628115 | K21: 78.49 | L21: 0 | M21: 0 | N21: 78.49 | O21: 0.8463377 | P21: 84.63377202 | Q21: 100 | R21: 0 | S21: 0 | T21: 100 | U21: 0.8152174 | V21: 81.5217391 | W21: 85.3730706 | X21: 19
A22: 20 | B22: 2023215403 | C22: 张瑜亮 | D22: 环境专硕 | E22: 94.8 | F22: 0 | G22: 0 | H22: 94.8 | I22: 0.8716187 | J22: 87.16186789 | K22: 79.0875 | L22: 0 | M22: 0 | N22: 79.0875 | O22: 0.8527804 | P22: 85.27804108 | Q22: 100 | R22: 0 | S22: 0 | T22: 100 | U22: 0.8152174 | V22: 81.5217391 | W22: 85.2791762 | X22: 20

Sheet 国际班
A1: 序号 | B1: 学号 | C1: 姓名 | D1: 方向 | E1: 德育成绩 | K1: 智育成绩 | Q1: 文体成绩 | W1: 总分 | X1: 排名
E2: 基础分组 | F2: 奖励分 | G2: 惩罚分 | H2: 个人德育总分 | I2: 个人德育总分/基准 | J2: 德育总成绩 | K2: 基础分 | L2: 奖励分 | M2: 惩罚分 | N2: 个人智育总分 | O2: 个人智育总分/基准 | P2: 智育总成绩 | Q2: 基础分 | R2: 奖励分 | S2: 惩罚分 | T2: 个人文体总分 | U2: 个人文体总分/基准 | V2: 文体总成绩
A3: 1 | B3: 2023215376 | C3: 刘艺霖 | D3: 工程专硕 | E3: 95 | F3: 17.3 | G3: 0 | H3: =E3+F3 -> 112.3 | I3: =H3/112.3 -> 1 | J3: 100 | K3: 91.86053 | L3: 5 | M3: 0 | N3: =K3+L3 -> 96.86053 | O3: =N3/96.86053 -> 1.0000000 | P3: 100 | Q3: 100 | R3: 7.99 | S3: 0 | T3: =Q3+R3 -> 107.9900000 | U3: =T3/107.99 -> 1.0000000 | V3: 100 | W3: =J3*0.2+P3*0.7+V3*0.1 -> 100 | X3: 1
A4: 2 | B4: 2023210676 | C4: 荆体瑞 | D4: 环境学硕 | E4: 95.616 | F4: 12.7 | G4: 0 | H4: 108.316 | I4: 0.9645235975 | J4: 96.452 | K4: 90.20708 | L4: 0.94 | M4: 0 | N4: 91.14708 | O4: 0.9410136 | P4: 94.101 | Q4: 100 | R4: 1.33 | S4: 0 | T4: 101.3300000 | U4: 0.9383276 | V4: 93.833 | W4: 94.5444 | X4: 2
A5: 3 | B5: 2023210630 | C5: 王中琦 | D5: 环境学硕 | E5: 95.203 | F5: 0.5 | G5: 0 | H5: 95.703 | I5: 0.8522083704 | J5: 85.221 | K5: 93.16174 | L5: 0 | M5: 0 | N5: 93.16174 | O5: 0.9618132 | P5: 96.181 | Q5: 100 | R5: 0 | S5: 0 | T5: 100.0000000 | U5: 0.9260117 | V5: 92.601 | W5: 93.631 | X5: 3
A6: 4 | B6: 2023210629 | C6: 斯潮涌 | D6: 环境学硕 | E6: 93.887 | F6: 1.5 | G6: 0 | H6: 95.387 | I6: 0.8493944791 | J6: 84.939 | K6: 88.88 | L6: 3.75 | M6: 0 | N6: 92.63 | O6: 0.9563235 | P6: 95.632 | Q6: 100 | R6: 2.1 | S6: 0 | T6: 102.1000000 | U6: 0.9454579 | V6: 94.546 | W6: 93.3848 | X6: 4
A7: 5 | B7: 2023210627 | C7: 张伟浩 | D7: 工程学硕 | E7: 97.261 | F7: 14.8 | G7: 0 | H7: 112.061 | I7: 0.997871772 | J7: 99.787 | K7: 88.51645 | L7: 0 | M7: 0 | N7: 88.51645 | O7: 0.9138547 | P7: 91.385 | Q7: 100 | R7: 0 | S7: 0 | T7: 100.0000000 | U7: 0.9260117 | V7: 92.601 | W7: 93.187 | X7: 5
A8: 6 | B8: 2023215316 | C8: 赵冬蕊 | D8: 工艺专硕 | E8: 95.406 | F8: 9.65 | G8: 0 | H8: 105.056 | I8: 0.9354942119 | J8: 93.549 | K8: 89.5456 | L8: 0.375 | M8: 0 | N8: 89.9206 | O8: 0.9283513 | P8: 92.835 | Q8: 100 | R8: 1.6 | S8: 0 | T8: 101.6000000 | U8: 0.9408279 | V8: 94.083 | W8: 93.1026 | X8: 6
A9: 7 | B9: 2023210631 | C9: 祖思雅 | D9: 环境学硕 | E9: 94.216 | F9: 0 | G9: 0 | H9: 94.216 | I9: 0.8389670525 | J9: 83.897 | K9: 90.121 | L9: 0 | M9: 0 | N9: 90.121 | O9: 0.9304203 | P9: 93.042 | Q9: 100 | R9: 0 | S9: 0 | T9: 100.0000000 | U9: 0.9260117 | V9: 92.601 | W9: 91.1689 | X9: 7
A10: 8 | B10: 2023210567 | C10: 刘政 | D10: 工程学硕 | E10: 91.5 | F10: 6.8 | G10: 0 | H10: 98.3 | I10: 0.875333927 | J10: 87.533 | K10: 85.75769 | L10: 3 | M10: 0 | N10: 88.75769 | O10: 0.9163453 | P10: 91.635 | Q10: 100 | R10: 0 | S10: 0 | T10: 100.0000000 | U10: 0.9260117 | V10: 92.601 | W10: 90.9112 | X10: 8
A11: 9 | B11: 2023210639 | C11: 甘意群 | D11: 环境学硕 | E11: 95.616 | F11: 4 | G11: 0 | H11: 99.616 | I11: 0.8870525378 | J11: 88.705 | K11: 87.56 | L11: 0 | M11: 0 | N11: 87.56 | O11: 0.9039802 | P11: 90.398 | Q11: 100 | R11: 1.67 | S11: 0 | T11: 101.6700000 | U11: 0.9414761 | V11: 94.148 | W11: 90.4344 | X11: 9
A12: 10 | B12: 2023210584 | C12: 张蕴梅 | D12: 工程学硕 | E12: 95.819 | G12: 0 | H12: 95.819 | I12: 0.8532413179 | J12: 85.324 | K12: 88.07669 | L12: 0 | M12: 0 | N12: 88.07669 | O12: 0.9093146 | P12: 90.931 | Q12: 100 | R12: 0 | S12: 0 | T12: 100.0000000 | U12: 0.9260117 | V12: 92.601 | W12: 89.9766 | X12: 10
A13: 11 | B13: 2023210665 | C13: 刘程程 | D13: 环境学硕 | E13: 95.574 | F13: 0.5 | G13: 0 | H13: 96.074 | I13: 0.8555120214 | J13: 85.551 | K13: 87.07348 | L13: 0.17 | M13: 0 | N13: 87.24348 | O13: 0.9007124 | P13: 90.071 | Q13: 100 | R13: 0 | S13: 0 | T13: 100.0000000 | U13: 0.9260117 | V13: 92.601 | W13: 89.42 | X13: 11
A14: 12 | B14: 2023210640 | C14: 龚灵俐 | D14: 环境学硕 | E14: 95.287 | G14: 0 | H14: 95.287 | I14: 0.8485040071 | J14: 84.85 | K14: 86.065 | L14: 0 | M14: 0 | N14: 86.065 | O14: 0.8885456 | P14: 88.855 | Q14: 100 | R14: 0 | S14: 0 | T14: 100.0000000 | U14: 0.9260117 | V14: 92.601 | W14: 88.4286 | X14: 12
A15: 13 | B15: 2023210626 | C15: 文梦鑫 | D15: 工程学硕 | E15: 94.587 | F15: 1.5 | G15: 0 | H15: 96.087 | I15: 0.8556277827 | J15: 85.563 | K15: 85.285 | L15: 0 | M15: 0 | N15: 85.285 | O15: 0.8804928 | P15: 88.049 | Q15: 100 | R15: 0 | S15: 0 | T15: 100.0000000 | U15: 0.9260117 | V15: 92.601 | W15: 88.007 | X15: 13
A16: 14 | B16: 2023210595 | C16: 刘佳慧 | D16: 工程学硕 | E16: 95.406 | F16: 3.65 | G16: 0 | H16: 99.056 | I16: 0.8820658949 | J16: 88.207 | K16: 83.3931 | L16: 1 | M16: 0 | N16: 84.3931 | O16: 0.8712847 | P16: 87.128 | Q16: 100 | R16: 0 | S16: 0 | T16: 100.0000000 | U16: 0.9260117 | V16: 92.601 | W16: 87.8911 | X16: 14
A17: 15 | B17: 2023210583 | C17: 吴华宇 | D17: 工艺学硕 | E17: 94.587 | F17: 0.5 | G17: 0 | H17: 95.087 | I17: 0.8467230632 | J17: 84.672 | K17: 83.8021 | L17: 0 | M17: 0 | N17: 83.8021 | O17: 0.8651832 | P17: 86.518 | Q17: 100 | R17: 0 | S17: 0 | T17: 100.0000000 | U17: 0.9260117 | V17: 92.601 | W17: 86.7571 | X17: 15
A18: 16 | B18: 2023210628 | C18: 班艺宁 | D18: 环境学硕 | E18: 95.203 | F18: 3 | G18: 0 | H18: 98.203 | I18: 0.8744701692 | J18: 87.447 | K18: 82.63529 | L18: 0 | M18: 0 | N18: 82.63529 | O18: 0.8531369 | P18: 85.314 | Q18: 100 | R18: 0 | S18: 0 | T18: 100.0000000 | U18: 0.9260117 | V18: 92.601 | W18: 86.4693 | X18: 16
A19: 17 | B19: 2023215370 | C19: 张文龙 | D19: 工程专硕 | E19: 95.371 | F19: 1 | G19: 0 | H19: 96.371 | I19: 0.8581567231 | J19: 85.516 | K19: 82.9952 | L19: 0 | M19: 0 | N19: 82.9952 | O19: 0.8568526 | P19: 85.685 | Q19: 100 | R19: 0 | S19: 0 | T19: 100.0000000 | U19: 0.9260117 | V19: 92.601 | W19: 86.3428 | X19: 17
A20: 18 | B20: 2023210592 | C20: 安翔 | D20: 工程学硕 | E20: 94.461 | F20: 6 | G20: 0 | H20: 100.461 | I20: 0.8945770258 | J20: 89.458 | K20: 81.4831 | L20: 0 | M20: 0 | N20: 81.4831 | O20: 0.8412415 | P20: 84.124 | Q20: 100 | R20: 0 | S20: 0 | T20: 100.0000000 | U20: 0.9260117 | V20: 92.601 | W20: 86.0385 | X20: 18
